Department,Entity,Date of Payment,Expense Type,Expense Area,Supplier,Transaction Number,Amount,Description,Supplier Post Code,Supplier Type
"Department for Business, Energy and Industrial Strategy","Department for Business, Energy and Industrial Strategy",24/03/2020,Central Telecommunications Services,"Corporate Services - Digital, Data & Technology",CMC COMMUNICATIONS LTD,129135,1360.8,MF Devolved Admin-Central Telecommunications Services,SL5 8LH,VENDOR
"Department for Business, Energy and Industrial Strategy","Department for Business, Energy and Industrial Strategy",18/03/2020,Catering Services,"Industrial Strategy, Science and Innovation - Government Office for Science",RAE TRADING LTD T/A (PRINCE PHILIP HOUSE),333895,-2176.65,Foresight: Council of Science and Technology-Catering Services,SW1Y 5DG,VENDOR
"Department for Business, Energy and Industrial Strategy","Department for Business, Energy and Industrial Strategy",18/03/2020,Catering Services,"Industrial Strategy, Science and Innovation - Government Office for Science",RAE TRADING LTD T/A (PRINCE PHILIP HOUSE),333895,4788.63,Foresight: Council of Science and Technology-Catering Services,SW1Y 5DG,VENDOR
"Department for Business, Energy and Industrial Strategy","Department for Business, Energy and Industrial Strategy",11/03/2020,R & D Strategy Consultancy,"Industrial Strategy, Science and Innovation - International Science and Innovation",THE DEXTROUS WEB LTD T/A DXW,335608,42323.9,GCRF - Transformation Project - ODA Reporting Tool (ODART)-R & D Strategy Consultancy,N1 6NU,VENDOR
"Department for Business, Energy and Industrial Strategy","Department for Business, Energy and Industrial Strategy",23/03/2020,Printing,Market Frameworks - Regulation Executive,Allied Publicity Services (Manchester) Ltd T/A APS Group,335765,-710.79,MF Devolved Admin-Printing,SK3 0ZP,VENDOR
"Department for Business, Energy and Industrial Strategy","Department for Business, Energy and Industrial Strategy",23/03/2020,Printing,Market Frameworks - Regulation Executive,Allied Publicity Services (Manchester) Ltd T/A APS Group,335765,1454.75,MF Devolved Admin-Printing,SK3 0ZP,VENDOR
"Department for Business, Energy and Industrial Strategy","Department for Business, Energy and Industrial Strategy",03/03/2020,External Training,Energy and Security - Energy Development and Resilience,Allied Stevedores Ltd T/A Allied Training Services,336202,150,Offshore Environmental Permits-External Training,AB11 5BT,VENDOR
"Department for Business, Energy and Industrial Strategy","Department for Business, Energy and Industrial Strategy",17/03/2020,Marketing and Media,Corporate Services - Communications,Omnicom Media Group UK Ltd T/A Manning Gottlieb OMD,336230,-15309.25,EU Exit: CPG ADM-Marketing and Media,SE1 0SW,VENDOR
"Department for Business, Energy and Industrial Strategy","Department for Business, Energy and Industrial Strategy",17/03/2020,Marketing and Media,Corporate Services - Communications,Omnicom Media Group UK Ltd T/A Manning Gottlieb OMD,336230,15.14,EU Exit: CPG ADM-Marketing and Media,SE1 0SW,VENDOR
"Department for Business, Energy and Industrial Strategy","Department for Business, Energy and Industrial Strategy",17/03/2020,Marketing and Media,Corporate Services - Communications,Omnicom Media Group UK Ltd T/A Manning Gottlieb OMD,336230,30603.36,EU Exit: CPG ADM-Marketing and Media,SE1 0SW,VENDOR
"Department for Business, Energy and Industrial Strategy","Department for Business, Energy and Industrial Strategy",16/03/2020,Advertising,Corporate Services - Communications,Omnicom Media Group UK Ltd T/A Manning Gottlieb OMD,336231,-3657.21,EU Exit: CPG ADM-Advertising,SE1 0SW,VENDOR
"Department for Business, Energy and Industrial Strategy","Department for Business, Energy and Industrial Strategy",11/03/2020,Clearing Account - Cost - Assets Under Construction - Fixtures & Fittings,Market Frameworks - Office for Product Safety and Standards,Lones (UK) Ltd T/A Workplace Products,336377,943.84,OPSS: National Capacity Market Surveillance and Consumer-Clearing Account - Cost - Assets Under Construction - Fixtures & Fittings,DY9 7BQ,VENDOR
"Department for Business, Energy and Industrial Strategy","Department for Business, Energy and Industrial Strategy",03/03/2020,Clarity Travel Management,"Corporate Services - Digital, Data & Technology",Mawasem Ltd T/A Clarity Travel Management,336382,73.33,Default-Clarity Travel Management,ST18 0WN,VENDOR
"Department for Business, Energy and Industrial Strategy","Department for Business, Energy and Industrial Strategy",03/03/2020,Capital Grants to Private Sector - Companies,Energy Transformation and Clean Growth - Science and Innovation,Power Migration Partners Ltd T/A StorTera,336406,52995.74,Innovation Delivery Cross Cutting-Capital Grants to Private Sector - Companies,EH16 4BB,VENDOR
"Department for Business, Energy and Industrial Strategy","Department for Business, Energy and Industrial Strategy",03/03/2020,Capital Grants to Private Sector - Companies,Energy Transformation and Clean Growth - Science and Innovation,ORE CATAPULT DEVELOPMENT SERVICES LTD T/A ODSL,336409,82283.63,Offshore Wind-Capital Grants to Private Sector - Companies,NE24 1LZ,GRANT
"Department for Business, Energy and Industrial Strategy","Department for Business, Energy and Industrial Strategy",03/03/2020,Hire of Conference Facilities,Corporate Services - Commercial & Operations,Waterloo Hotel Operator Ltd T/A Park Plaza London Waterloo,336432,1087.5,MF Devolved Admin-Hire of Conference Facilities,SE1 7DP,VENDOR
"Department for Business, Energy and Industrial Strategy","Department for Business, Energy and Industrial Strategy",03/03/2020,Hire of Conference Facilities,Corporate Services - Commercial & Operations,Waterloo Hotel Operator Ltd T/A Park Plaza London Waterloo,336433,4130,MF Devolved Admin-Hire of Conference Facilities,SE1 7DP,VENDOR
"Department for Business, Energy and Industrial Strategy","Department for Business, Energy and Industrial Strategy",03/03/2020,Hire of Conference Facilities,Corporate Services - Commercial & Operations,Waterloo Hotel Operator Ltd T/A Park Plaza London Waterloo,336434,4720,MF Devolved Admin-Hire of Conference Facilities,SE1 7DP,VENDOR
"Department for Business, Energy and Industrial Strategy","Department for Business, Energy and Industrial Strategy",03/03/2020,Hire of Conference Facilities,Corporate Services - Commercial & Operations,Waterloo Hotel Operator Ltd T/A Park Plaza London Waterloo,336435,4970,MF Devolved Admin-Hire of Conference Facilities,SE1 7DP,VENDOR
"Department for Business, Energy and Industrial Strategy","Department for Business, Energy and Industrial Strategy",05/03/2020,Training And Development Expenditure,Energy Transformation and Clean Growth - Energy Efficiency and Local,THE CHARING CROSS HOTEL LTD T/A AMBA HOTEL CHARING CROSS,336628,-5940,MF Devolved Admin-Training And Development Expenditure,WC2N 5HX,VENDOR
"Department for Business, Energy and Industrial Strategy","Department for Business, Energy and Industrial Strategy",05/03/2020,Training And Development Expenditure,Energy Transformation and Clean Growth - Energy Efficiency and Local,THE CHARING CROSS HOTEL LTD T/A AMBA HOTEL CHARING CROSS,336628,10890,MF Devolved Admin-Training And Development Expenditure,WC2N 5HX,VENDOR
"Department for Business, Energy and Industrial Strategy","Department for Business, Energy and Industrial Strategy",04/03/2020,Advertising,"Industrial Strategy, Science and Innovation - Business Growth",Allied Publicity Services (Manchester) Ltd T/A APS Group,336664,326.09,Small Business Commissioner-Advertising,SK3 0ZP,VENDOR
"Department for Business, Energy and Industrial Strategy","Department for Business, Energy and Industrial Strategy",03/03/2020,Advertising,Corporate Services - Communications,THE DEXTROUS WEB LTD T/A DXW,336681,1400.75,Corporate Presentation-Advertising,N1 6NU,VENDOR
"Department for Business, Energy and Industrial Strategy","Department for Business, Energy and Industrial Strategy",04/03/2020,Learning and Dev - CS Skills,Corporate Services - Human Resources,CAPITA BUSINESS SERVICES LTD T/A KNOWLEDGEPOOL,336907,486.5,MF Non Devolved Admin-Learning and Dev - CS Skills,DL1 9HN,VENDOR
"Department for Business, Energy and Industrial Strategy","Department for Business, Energy and Industrial Strategy",04/03/2020,Finance Training,Corporate Services - Human Resources,CAPITA BUSINESS SERVICES LTD T/A KNOWLEDGEPOOL,336916,185.29,MF Non Devolved Admin-Finance Training,DL1 9HN,VENDOR
"Department for Business, Energy and Industrial Strategy","Department for Business, Energy and Industrial Strategy",06/03/2020,Finance Training,Corporate Services - Human Resources,CAPITA BUSINESS SERVICES LTD T/A KNOWLEDGEPOOL,336985,597.99,MF Non Devolved Admin-Finance Training,DL1 9HN,VENDOR
"Department for Business, Energy and Industrial Strategy","Department for Business, Energy and Industrial Strategy",09/03/2020,Learning and Dev - CS Skills,Corporate Services - Human Resources,CAPITA BUSINESS SERVICES LTD T/A KNOWLEDGEPOOL,336992,4224.56,MF Non Devolved Admin-Learning and Dev - CS Skills,DL1 9HN,VENDOR
"Department for Business, Energy and Industrial Strategy","Department for Business, Energy and Industrial Strategy",06/03/2020,Reprographic Services,Corporate Services - Commercial & Operations,Allied Publicity Services (Manchester) Ltd T/A APS Group,337175,-8469.24,MF Devolved Admin-Reprographic Services,SK3 0ZP,VENDOR
"Department for Business, Energy and Industrial Strategy","Department for Business, Energy and Industrial Strategy",06/03/2020,Reprographic Services,Corporate Services - Commercial & Operations,Allied Publicity Services (Manchester) Ltd T/A APS Group,337175,2699.23,MF Devolved Admin-Reprographic Services,SK3 0ZP,VENDOR
"Department for Business, Energy and Industrial Strategy","Department for Business, Energy and Industrial Strategy",06/03/2020,Reprographic Services,Corporate Services - Commercial & Operations,Allied Publicity Services (Manchester) Ltd T/A APS Group,337175,15393.25,MF Devolved Admin-Reprographic Services,SK3 0ZP,VENDOR
"Department for Business, Energy and Industrial Strategy","Department for Business, Energy and Industrial Strategy",06/03/2020,Other Professional Services,Energy Transformation and Clean Growth - Energy Efficiency and Local,SOCIETY FOR THE REDUCTION OF CARBON LTD T/A CARBON CO-OP,337358,80000,OWNER OCCUPIED POLICY DEVELOPMENT-Other Professional Services,M1 1HR,VENDOR
"Department for Business, Energy and Industrial Strategy","Department for Business, Energy and Industrial Strategy",06/03/2020,Application Support Service,"Corporate Services - Digital, Data & Technology",Inform Ltd T/A The Inform Team,337387,7344,MF Devolved Admin-Application Support Service,SE11 5SW,VENDOR
"Department for Business, Energy and Industrial Strategy","Department for Business, Energy and Industrial Strategy",09/03/2020,R & D Research and Development Expenditure,Energy Transformation and Clean Growth - Science and Innovation,BVG ASSOCIATES LTD T/A BVG ASSOCIATES,337455,1627.31,Innovation Delivery Renewables-R & D Research and Development Expenditure,SN6 6HY,VENDOR
"Department for Business, Energy and Industrial Strategy","Department for Business, Energy and Industrial Strategy",10/03/2020,Travel Booking,Energy and Security - Energy Development and Resilience,IET Services Ltd T/A The Institute of Engineering and Technology,337989,9985.9,MF Devolved Admin-Travel Booking,SG1 2SD,VENDOR
"Department for Business, Energy and Industrial Strategy","Department for Business, Energy and Industrial Strategy",10/03/2020,R & D Outsourced Other,Energy Transformation and Clean Growth - Science and Innovation,MARKET & OPINION RESEARCH INTERNATIONAL LTD T/A IPSOS MORI,337992,80000,Innovation Delivery SMART Systems and Integration-R & D Outsourced Other,E1W 1YW,VENDOR
"Department for Business, Energy and Industrial Strategy","Department for Business, Energy and Industrial Strategy",11/03/2020,Reprographic Services,Corporate Services - Commercial & Operations,Allied Publicity Services (Manchester) Ltd T/A APS Group,338166,119.24,MF Devolved Admin-Reprographic Services,SK3 0ZP,VENDOR
"Department for Business, Energy and Industrial Strategy","Department for Business, Energy and Industrial Strategy",11/03/2020,Reprographic Services,Corporate Services - Commercial & Operations,Allied Publicity Services (Manchester) Ltd T/A APS Group,338166,124.8,MF Devolved Admin-Reprographic Services,SK3 0ZP,VENDOR
"Department for Business, Energy and Industrial Strategy","Department for Business, Energy and Industrial Strategy",11/03/2020,Advertising,"Industrial Strategy, Science and Innovation - Business Growth",Allied Publicity Services (Manchester) Ltd T/A APS Group,338304,29.64,Small Business Commissioner-Advertising,SK3 0ZP,VENDOR
"Department for Business, Energy and Industrial Strategy","Department for Business, Energy and Industrial Strategy",12/03/2020,Training And Development Expenditure,Corporate Services - Human Resources,CAPITA BUSINESS SERVICES LTD T/A KNOWLEDGEPOOL,338491,7151.65,EU Exit: HR ADM-Training And Development Expenditure,DL1 9HN,VENDOR
"Department for Business, Energy and Industrial Strategy","Department for Business, Energy and Industrial Strategy",12/03/2020,Other IT Consultancy,Market Frameworks - Labour Market,Solirius Ltd T/A Solirius Consulting,338520,16700,Family Related Policy Comms-Other IT Consultancy,EC3A 2AD,VENDOR
"Department for Business, Energy and Industrial Strategy","Department for Business, Energy and Industrial Strategy",12/03/2020,Training And Development Expenditure,Corporate Services - Human Resources,CAPITA BUSINESS SERVICES LTD T/A KNOWLEDGEPOOL,338524,3681.76,EU Exit: HR ADM-Training And Development Expenditure,DL1 9HN,VENDOR
"Department for Business, Energy and Industrial Strategy","Department for Business, Energy and Industrial Strategy",12/03/2020,Training And Development Expenditure,Corporate Services - Human Resources,CAPITA BUSINESS SERVICES LTD T/A KNOWLEDGEPOOL,338525,8488,EU Exit: HR ADM-Training And Development Expenditure,DL1 9HN,VENDOR
"Department for Business, Energy and Industrial Strategy","Department for Business, Energy and Industrial Strategy",12/03/2020,Learning and Dev - CS Skills,Corporate Services - Human Resources,CAPITA BUSINESS SERVICES LTD T/A KNOWLEDGEPOOL,338541,4538.1,MF Non Devolved Admin-Learning and Dev - CS Skills,DL1 9HN,VENDOR
"Department for Business, Energy and Industrial Strategy","Department for Business, Energy and Industrial Strategy",12/03/2020,Learning and Dev - CS Skills,Corporate Services - Human Resources,CAPITA BUSINESS SERVICES LTD T/A KNOWLEDGEPOOL,338757,486.5,MF Non Devolved Admin-Learning and Dev - CS Skills,DL1 9HN,VENDOR
"Department for Business, Energy and Industrial Strategy","Department for Business, Energy and Industrial Strategy",12/03/2020,International Subscriptions,"Corporate Services - Digital, Data & Technology",EBSCO INTERNATIONAL INC T/A EBSCO INFORMATION SERVICES,338820,37567,MF Devolved Admin-International Subscriptions,EN5 1NZ,VENDOR
"Department for Business, Energy and Industrial Strategy","Department for Business, Energy and Industrial Strategy",13/03/2020,Other Facilities Costs,Market Frameworks - Office for Product Safety and Standards,Kincaid 1875 Ltd T/A Trenchers,338822,-138.36,OPSS: Primary Authority-Other Facilities Costs,B35 6LJ,VENDOR
"Department for Business, Energy and Industrial Strategy","Department for Business, Energy and Industrial Strategy",13/03/2020,Other Facilities Costs,Market Frameworks - Office for Product Safety and Standards,Kincaid 1875 Ltd T/A Trenchers,338822,253.66,OPSS: Primary Authority-Other Facilities Costs,B35 6LJ,VENDOR
"Department for Business, Energy and Industrial Strategy","Department for Business, Energy and Industrial Strategy",17/03/2020,Printing,"Industrial Strategy, Science and Innovation - Business Growth",Grafenia Operations Limited T/A Nettl of Birmingham,338836,-400,Small Business Commissioner-Printing,B3 3JY,VENDOR
"Department for Business, Energy and Industrial Strategy","Department for Business, Energy and Industrial Strategy",17/03/2020,Printing,"Industrial Strategy, Science and Innovation - Business Growth",Grafenia Operations Limited T/A Nettl of Birmingham,338836,799,Small Business Commissioner-Printing,B3 3JY,VENDOR
"Department for Business, Energy and Industrial Strategy","Department for Business, Energy and Industrial Strategy",31/03/2020,Learning and Dev - CS Skills,Corporate Services - Human Resources,CAPITA BUSINESS SERVICES LTD T/A KNOWLEDGEPOOL,338902,4538.1,MF Devolved Admin-Learning and Dev - CS Skills,DL1 9HN,VENDOR
"Department for Business, Energy and Industrial Strategy","Department for Business, Energy and Industrial Strategy",13/03/2020,Capital Grants to Private Sector - Companies,Energy Transformation and Clean Growth - Science and Innovation,ORE CATAPULT DEVELOPMENT SERVICES LTD T/A ODSL,338908,75851.64,Offshore Wind-Capital Grants to Private Sector - Companies,NE24 1LZ,GRANT
"Department for Business, Energy and Industrial Strategy","Department for Business, Energy and Industrial Strategy",24/03/2020,IT Hosting Services,Corporate Services - Communications,THE DEXTROUS WEB LTD T/A DXW,338947,923,MF Devolved Admin-IT Hosting Services,N1 6NU,VENDOR
"Department for Business, Energy and Industrial Strategy","Department for Business, Energy and Industrial Strategy",16/03/2020,Hire of Conference Facilities,"Industrial Strategy, Science and Innovation - Business Growth",ST ERMINS OPERATING (UK) LTD T/A ST ERMINS HOTEL,339095,2776,MF Devolved Admin-Hire of Conference Facilities,SW1H 0QW,VENDOR
"Department for Business, Energy and Industrial Strategy","Department for Business, Energy and Industrial Strategy",16/03/2020,Advertising,Corporate Services - Communications,Omnicom Media Group UK Ltd T/A Manning Gottlieb OMD,339181,0.3,EU Exit: CPG ADM-Advertising,SE1 0SW,VENDOR
"Department for Business, Energy and Industrial Strategy","Department for Business, Energy and Industrial Strategy",16/03/2020,Advertising,Corporate Services - Communications,Omnicom Media Group UK Ltd T/A Manning Gottlieb OMD,339181,304.25,EU Exit: CPG ADM-Advertising,SE1 0SW,VENDOR
"Department for Business, Energy and Industrial Strategy","Department for Business, Energy and Industrial Strategy",17/03/2020,Publications,Energy and Security - Energy Development and Resilience,THOMSON REUTERS (PROFESSIONAL) UK LTD T/A SWEET & MAXWELL,339627,2962,Offshore Environmental Permits-Publications,SE1 8DJ,VENDOR
"Department for Business, Energy and Industrial Strategy","Department for Business, Energy and Industrial Strategy",18/03/2020,Other Facilities Costs,Market Frameworks - Office for Product Safety and Standards,Kincaid 1875 Ltd T/A Trenchers,339730,138.35,OPSS: Primary Authority-Other Facilities Costs,B35 6LJ,VENDOR
"Department for Business, Energy and Industrial Strategy","Department for Business, Energy and Industrial Strategy",23/03/2020,Clearing Account - Cost - Assets Under Construction - Fixtures & Fittings,Market Frameworks - Office for Product Safety and Standards,Lones (UK) Ltd T/A Workplace Products,340178,1701.87,OPSS: National Capacity Market Surveillance and Consumer-Clearing Account - Cost - Assets Under Construction - Fixtures & Fittings,DY9 7BQ,VENDOR
"Department for Business, Energy and Industrial Strategy","Department for Business, Energy and Industrial Strategy",20/03/2020,Stationery,Market Frameworks - Office of Manpower Economics,OFFICE DEPOT INTERNATIONAL (UK) LTD T/A VIKING DIRECT,340196,922.92,MF Devolved Admin-Stationery,LE41 9GS,VENDOR
"Department for Business, Energy and Industrial Strategy","Department for Business, Energy and Industrial Strategy",23/03/2020,Utilisation of Provisions - Purchase of Goods & Services - Other,Energy and Security - Energy Development and Resilience,NHLEX Ltd t/a Novum Law,340334,989.23,Vosper Gap DEL-Utilisation of Provisions - Purchase of Goods & Services - Other,SN3 3LL,GRANT
"Department for Business, Energy and Industrial Strategy","Department for Business, Energy and Industrial Strategy",24/03/2020,Specialist Software and Hardware,Market Frameworks - Consumer and Competition Policy,MERGERMARKET LTD T/A  MERGERMARKET GROUP,340610,42000,MF Devolved Admin-Specialist Software and Hardware,EC4R 1BE,VENDOR
"Department for Business, Energy and Industrial Strategy","Department for Business, Energy and Industrial Strategy",31/03/2020,Marketing and Media,Corporate Services - Communications,Omnicom Media Group UK Ltd T/A Manning Gottlieb OMD,340881,24.42,EU Exit: CPG ADM-Marketing and Media,SE1 0SW,VENDOR
"Department for Business, Energy and Industrial Strategy","Department for Business, Energy and Industrial Strategy",31/03/2020,Marketing and Media,Corporate Services - Communications,Omnicom Media Group UK Ltd T/A Manning Gottlieb OMD,340881,24975.57,EU Exit: CPG ADM-Marketing and Media,SE1 0SW,VENDOR
"Department for Business, Energy and Industrial Strategy","Department for Business, Energy and Industrial Strategy",31/03/2020,Marketing and Media,Corporate Services - Communications,Omnicom Media Group UK Ltd T/A Manning Gottlieb OMD,340883,-2501.04,EU Exit: CPG ADM-Marketing and Media,SE1 0SW,VENDOR
"Department for Business, Energy and Industrial Strategy","Department for Business, Energy and Industrial Strategy",31/03/2020,Marketing and Media,Corporate Services - Communications,Omnicom Media Group UK Ltd T/A Manning Gottlieb OMD,340883,-2.48,EU Exit: CPG ADM-Marketing and Media,SE1 0SW,VENDOR
"Department for Business, Energy and Industrial Strategy","Department for Business, Energy and Industrial Strategy",25/03/2020,Learning and Dev - CS Skills,Corporate Services - Human Resources,CAPITA BUSINESS SERVICES LTD T/A KNOWLEDGEPOOL,340971,973,MF Non Devolved Admin-Learning and Dev - CS Skills,DL1 9HN,VENDOR
"Department for Business, Energy and Industrial Strategy","Department for Business, Energy and Industrial Strategy",25/03/2020,Research and Development Expenditure,Energy Transformation and Clean Growth - Energy Efficiency and Local,Risksol Consulting Ltd T/A Risk Solutions,341019,35000,Heat Networks Programme costs-Research and Development Expenditure,WA2 7LT,VENDOR
"Department for Business, Energy and Industrial Strategy","Department for Business, Energy and Industrial Strategy",25/03/2020,R & D Outsourced Other,Energy Transformation and Clean Growth - Science and Innovation,MARKET & OPINION RESEARCH INTERNATIONAL LTD T/A IPSOS MORI,341047,31957.02,Innovation Delivery SMART Systems and Integration-R & D Outsourced Other,E1W 1YW,VENDOR
"Department for Business, Energy and Industrial Strategy","Department for Business, Energy and Industrial Strategy",25/03/2020,R & D Outsourced Other,Energy Transformation and Clean Growth - Science and Innovation,MARKET & OPINION RESEARCH INTERNATIONAL LTD T/A IPSOS MORI,341048,94275,Innovation Delivery SMART Systems and Integration-R & D Outsourced Other,E1W 1YW,VENDOR
"Department for Business, Energy and Industrial Strategy","Department for Business, Energy and Industrial Strategy",26/03/2020,Recruitment Advice and Services,Market Frameworks - Labour Market,IRG ADVISORS LLP T/A ODGERS BERNDTSON,341217,15000,Labour Market Emerging Priorities-Recruitment Advice and Services,EC4M 6XD,VENDOR
"Department for Business, Energy and Industrial Strategy","Department for Business, Energy and Industrial Strategy",26/03/2020,Research and Development Expenditure,Energy Transformation and Clean Growth - Energy Efficiency and Local,CAG CONSULT LLP T/A CAG CONSULTANTS,341306,63180.88,CCA and EII Strategy-Research and Development Expenditure,EC3N 1LS,VENDOR
"Department for Business, Energy and Industrial Strategy","Department for Business, Energy and Industrial Strategy",26/03/2020,Research and Development Expenditure,Energy Transformation and Clean Growth - Clean Heat,CAG CONSULT LLP T/A CAG CONSULTANTS,341315,41336.18,RHI & FF Programme Costs-Research and Development Expenditure,EC3N 1LS,VENDOR
"Department for Business, Energy and Industrial Strategy","Department for Business, Energy and Industrial Strategy",26/03/2020,Research and Development Expenditure,Energy Transformation and Clean Growth - Clean Heat,CAG CONSULT LLP T/A CAG CONSULTANTS,341316,13251.23,RHI & FF Programme Costs-Research and Development Expenditure,EC3N 1LS,VENDOR
"Department for Business, Energy and Industrial Strategy","Department for Business, Energy and Industrial Strategy",26/03/2020,Research and Development Expenditure,Energy Transformation and Clean Growth - Clean Heat,CAG CONSULT LLP T/A CAG CONSULTANTS,341317,11023.24,RHI & FF Programme Costs-Research and Development Expenditure,EC3N 1LS,VENDOR
"Department for Business, Energy and Industrial Strategy","Department for Business, Energy and Industrial Strategy",26/03/2020,Research and Development Expenditure,Energy Transformation and Clean Growth - Clean Heat,CAG CONSULT LLP T/A CAG CONSULTANTS,341318,13996.83,RHI & FF Programme Costs-Research and Development Expenditure,EC3N 1LS,VENDOR
"Department for Business, Energy and Industrial Strategy","Department for Business, Energy and Industrial Strategy",27/03/2020,Learning and Dev - CS Skills,Corporate Services - Human Resources,CAPITA BUSINESS SERVICES LTD T/A KNOWLEDGEPOOL,341341,3660.33,MF Non Devolved Admin-Learning and Dev - CS Skills,DL1 9HN,VENDOR
"Department for Business, Energy and Industrial Strategy","Department for Business, Energy and Industrial Strategy",27/03/2020,Learning and Dev - CS Skills,Corporate Services - Human Resources,CAPITA BUSINESS SERVICES LTD T/A KNOWLEDGEPOOL,341343,1464.58,MF Non Devolved Admin-Learning and Dev - CS Skills,DL1 9HN,VENDOR
"Department for Business, Energy and Industrial Strategy","Department for Business, Energy and Industrial Strategy",27/03/2020,Learning and Dev - CS Skills,Corporate Services - Human Resources,CAPITA BUSINESS SERVICES LTD T/A KNOWLEDGEPOOL,341507,486.5,MF Non Devolved Admin-Learning and Dev - CS Skills,DL1 9HN,VENDOR
"Department for Business, Energy and Industrial Strategy","Department for Business, Energy and Industrial Strategy",27/03/2020,Learning and Dev - CS Skills,Corporate Services - Human Resources,CAPITA BUSINESS SERVICES LTD T/A KNOWLEDGEPOOL,341531,486.5,MF Non Devolved Admin-Learning and Dev - CS Skills,DL1 9HN,VENDOR
"Department for Business, Energy and Industrial Strategy","Department for Business, Energy and Industrial Strategy",27/03/2020,Finance Training,Corporate Services - Human Resources,CAPITA BUSINESS SERVICES LTD T/A KNOWLEDGEPOOL,341558,1176.75,MF Non Devolved Admin-Finance Training,DL1 9HN,VENDOR
"Department for Business, Energy and Industrial Strategy","Department for Business, Energy and Industrial Strategy",27/03/2020,Learning and Dev - CS Skills,Corporate Services - Human Resources,CAPITA BUSINESS SERVICES LTD T/A KNOWLEDGEPOOL,341585,717.36,MF Non Devolved Admin-Learning and Dev - CS Skills,DL1 9HN,VENDOR
"Department for Business, Energy and Industrial Strategy","Department for Business, Energy and Industrial Strategy",27/03/2020,IT Services,"Corporate Services - Digital, Data & Technology",Inform Ltd T/A The Inform Team,341632,15675,MF Devolved Admin-IT Services,SE11 5SW,VENDOR
"Department for Business, Energy and Industrial Strategy","Department for Business, Energy and Industrial Strategy",27/03/2020,Learning and Dev - CS Skills,"Trade, Europe and Analysis - Trade and Investment Negotiations",PARTNERSHIP MEDIA GROUP LTD T/A GOVNET COMMUNICATIONS,341644,445,EU Exit Core BEIS Staff: EU Exit Programme ADM-Learning and Dev - CS Skills,M1 6PP,VENDOR
"Department for Business, Energy and Industrial Strategy","Department for Business, Energy and Industrial Strategy",31/03/2020,Marketing and Media,Corporate Services - Communications,Omnicom Media Group UK Ltd T/A Manning Gottlieb OMD,341894,262.67,EU Exit: CPG ADM-Marketing and Media,SE1 0SW,VENDOR
"Department for Business, Energy and Industrial Strategy","Department for Business, Energy and Industrial Strategy",31/03/2020,Marketing and Media,Corporate Services - Communications,Omnicom Media Group UK Ltd T/A Manning Gottlieb OMD,341894,265451.6,EU Exit: CPG ADM-Marketing and Media,SE1 0SW,VENDOR
"Department for Business, Energy and Industrial Strategy","Department for Business, Energy and Industrial Strategy",31/03/2020,Marketing and Media,Corporate Services - Communications,Omnicom Media Group UK Ltd T/A Manning Gottlieb OMD,341896,3.89,EU Exit: CPG ADM-Marketing and Media,SE1 0SW,VENDOR
"Department for Business, Energy and Industrial Strategy","Department for Business, Energy and Industrial Strategy",31/03/2020,Marketing and Media,Corporate Services - Communications,Omnicom Media Group UK Ltd T/A Manning Gottlieb OMD,341896,3942.7,EU Exit: CPG ADM-Marketing and Media,SE1 0SW,VENDOR
"Department for Business, Energy and Industrial Strategy","Department for Business, Energy and Industrial Strategy",31/03/2020,Marketing and Media,Corporate Services - Communications,Omnicom Media Group UK Ltd T/A Manning Gottlieb OMD,341897,23.18,EU Exit: CPG ADM-Marketing and Media,SE1 0SW,VENDOR
"Department for Business, Energy and Industrial Strategy","Department for Business, Energy and Industrial Strategy",31/03/2020,Marketing and Media,Corporate Services - Communications,Omnicom Media Group UK Ltd T/A Manning Gottlieb OMD,341897,23481.13,EU Exit: CPG ADM-Marketing and Media,SE1 0SW,VENDOR
"Department for Business, Energy and Industrial Strategy","Department for Business, Energy and Industrial Strategy",30/03/2020,Other IT Consultancy,Market Frameworks - Labour Market,Solirius Ltd T/A Solirius Consulting,341944,49450,Family Related Policy Comms-Other IT Consultancy,EC3A 2AD,VENDOR
"Department for Business, Energy and Industrial Strategy","Department for Business, Energy and Industrial Strategy",30/03/2020,Capital Grants to Private Sector - Companies,Energy Transformation and Clean Growth - Science and Innovation,SOCIETY FOR THE REDUCTION OF CARBON LTD T/A CARBON CO-OP,342023,48003.9,Innovation Delivery SMART Systems and Integration-Capital Grants to Private Sector - Companies,M1 1HR,VENDOR
"Department for Business, Energy and Industrial Strategy","Department for Business, Energy and Industrial Strategy",30/03/2020,R & D Corporate Event Management and Marketing,"Industrial Strategy, Science and Innovation - International Science and Innovation",THOMAS TELFORD LTD T/A ONE GREAT GEORGE STREET,342283,2216.4,Newton Fund Prize-R & D Corporate Event Management and Marketing,SW1P 3AA,VENDOR
"Department for Business, Energy and Industrial Strategy","Department for Business, Energy and Industrial Strategy",30/03/2020,Technical Advice / Services & Support,"Corporate Services - Digital, Data & Technology",Inform Ltd T/A The Inform Team,342290,9000,MF Devolved Admin-Technical Advice / Services & Support,SE11 5SW,VENDOR
"Department for Business, Energy and Industrial Strategy","Department for Business, Energy and Industrial Strategy",30/03/2020,Marketing and Media,Business Sectors - Advanced Manufacturing,MARKET & OPINION RESEARCH INTERNATIONAL LTD T/A IPSOS MORI,342355,58294,Automotive:Advanced Propulsion Centre-Marketing and Media,E1W 1YW,VENDOR
"Department for Business, Energy and Industrial Strategy","Department for Business, Energy and Industrial Strategy",31/03/2020,Reprographic Services,Corporate Services - Commercial & Operations,Allied Publicity Services (Manchester) Ltd T/A APS Group,342401,1555.24,MF Devolved Admin-Reprographic Services,SK3 0ZP,VENDOR
"Department for Business, Energy and Industrial Strategy","Department for Business, Energy and Industrial Strategy",31/03/2020,Reprographic Services,Corporate Services - Commercial & Operations,Allied Publicity Services (Manchester) Ltd T/A APS Group,342401,10307.51,MF Devolved Admin-Reprographic Services,SK3 0ZP,VENDOR
"Department for Business, Energy and Industrial Strategy","Department for Business, Energy and Industrial Strategy",31/03/2020,Advertising,Corporate Services - Communications,THE DEXTROUS WEB LTD T/A DXW,342455,2375,EU Exit: CPG ADM-Advertising,N1 6NU,VENDOR
"Department for Business, Energy and Industrial Strategy","Department for Business, Energy and Industrial Strategy",31/03/2020,Learning and Dev - CS Skills,Corporate Services - Human Resources,CAPITA BUSINESS SERVICES LTD T/A KNOWLEDGEPOOL,342459,277.04,MF Non Devolved Admin-Learning and Dev - CS Skills,DL1 9HN,VENDOR
"Department for Business, Energy and Industrial Strategy","Department for Business, Energy and Industrial Strategy",24/03/2020,Central Telecommunications Services,"Corporate Services - Digital, Data & Technology",CMC COMMUNICATIONS LTD,129136,7646.4,MF Devolved Admin-Central Telecommunications Services,SL5 8LH,VENDOR
"Department for Business, Energy and Industrial Strategy","Department for Business, Energy and Industrial Strategy",18/03/2020,Stationery,"Industrial Strategy, Science and Innovation - Science and Research",BANNER BUSINESS SERVICES LTD,195973,569.03,MF Devolved Admin-Stationery,NR3 1QU,VENDOR
"Department for Business, Energy and Industrial Strategy","Department for Business, Energy and Industrial Strategy",11/03/2020,Telecoms Equipment,Corporate Services - Legal Services,DAISY COMMUNICATIONS LTD,197457,33.14,Legal Services Admin-Telecoms Equipment,BB9 5SR,VENDOR
"Department for Business, Energy and Industrial Strategy","Department for Business, Energy and Industrial Strategy",11/03/2020,Telecoms Equipment,Corporate Services - Legal Services,DAISY COMMUNICATIONS LTD,197458,35.99,Legal Services Admin-Telecoms Equipment,BB9 5SR,VENDOR
"Department for Business, Energy and Industrial Strategy","Department for Business, Energy and Industrial Strategy",11/03/2020,Telecoms Equipment,Corporate Services - Legal Services,DAISY COMMUNICATIONS LTD,201190,35.99,Legal Services Admin-Telecoms Equipment,BB9 5SR,VENDOR
"Department for Business, Energy and Industrial Strategy","Department for Business, Energy and Industrial Strategy",11/03/2020,Telecoms Equipment,Corporate Services - Legal Services,DAISY COMMUNICATIONS LTD,201191,33.14,Legal Services Admin-Telecoms Equipment,BB9 5SR,VENDOR
"Department for Business, Energy and Industrial Strategy","Department for Business, Energy and Industrial Strategy",11/03/2020,Telecoms Equipment,Corporate Services - Legal Services,DAISY COMMUNICATIONS LTD,208005,35.99,Legal Services Admin-Telecoms Equipment,BB9 5SR,VENDOR
"Department for Business, Energy and Industrial Strategy","Department for Business, Energy and Industrial Strategy",11/03/2020,Telecoms Equipment,Corporate Services - Legal Services,DAISY COMMUNICATIONS LTD,208006,-33.14,Legal Services Admin-Telecoms Equipment,BB9 5SR,VENDOR
"Department for Business, Energy and Industrial Strategy","Department for Business, Energy and Industrial Strategy",11/03/2020,Telecoms Equipment,Corporate Services - Legal Services,DAISY COMMUNICATIONS LTD,208006,66.28,Legal Services Admin-Telecoms Equipment,BB9 5SR,VENDOR
"Department for Business, Energy and Industrial Strategy","Department for Business, Energy and Industrial Strategy",06/03/2020,Stationery,"Industrial Strategy, Science and Innovation - Science and Research",Banner Group Limited,209782,-122.1,MF Devolved Admin-Stationery,NR3 1QU,VENDOR
"Department for Business, Energy and Industrial Strategy","Department for Business, Energy and Industrial Strategy",06/03/2020,Stationery,"Industrial Strategy, Science and Innovation - Science and Research",Banner Group Limited,209782,-30.66,MF Devolved Admin-Stationery,NR3 1QU,VENDOR
"Department for Business, Energy and Industrial Strategy","Department for Business, Energy and Industrial Strategy",06/03/2020,Stationery,"Industrial Strategy, Science and Innovation - Science and Research",Banner Group Limited,209782,-28.3,MF Devolved Admin-Stationery,NR3 1QU,VENDOR
"Department for Business, Energy and Industrial Strategy","Department for Business, Energy and Industrial Strategy",06/03/2020,Stationery,"Industrial Strategy, Science and Innovation - Science and Research",Banner Group Limited,209782,-19.2,MF Devolved Admin-Stationery,NR3 1QU,VENDOR
"Department for Business, Energy and Industrial Strategy","Department for Business, Energy and Industrial Strategy",06/03/2020,Stationery,"Industrial Strategy, Science and Innovation - Science and Research",Banner Group Limited,209782,-16.4,MF Devolved Admin-Stationery,NR3 1QU,VENDOR
"Department for Business, Energy and Industrial Strategy","Department for Business, Energy and Industrial Strategy",06/03/2020,Stationery,"Industrial Strategy, Science and Innovation - Science and Research",Banner Group Limited,209782,-8.6,MF Devolved Admin-Stationery,NR3 1QU,VENDOR
"Department for Business, Energy and Industrial Strategy","Department for Business, Energy and Industrial Strategy",06/03/2020,Stationery,"Industrial Strategy, Science and Innovation - Science and Research",Banner Group Limited,209782,7.31,MF Devolved Admin-Stationery,NR3 1QU,VENDOR
"Department for Business, Energy and Industrial Strategy","Department for Business, Energy and Industrial Strategy",06/03/2020,Stationery,"Industrial Strategy, Science and Innovation - Science and Research",Banner Group Limited,209782,18.4,MF Devolved Admin-Stationery,NR3 1QU,VENDOR
"Department for Business, Energy and Industrial Strategy","Department for Business, Energy and Industrial Strategy",06/03/2020,Stationery,"Industrial Strategy, Science and Innovation - Science and Research",Banner Group Limited,209782,36.08,MF Devolved Admin-Stationery,NR3 1QU,VENDOR
"Department for Business, Energy and Industrial Strategy","Department for Business, Energy and Industrial Strategy",06/03/2020,Stationery,"Industrial Strategy, Science and Innovation - Science and Research",Banner Group Limited,209782,42.24,MF Devolved Admin-Stationery,NR3 1QU,VENDOR
"Department for Business, Energy and Industrial Strategy","Department for Business, Energy and Industrial Strategy",06/03/2020,Stationery,"Industrial Strategy, Science and Innovation - Science and Research",Banner Group Limited,209782,55.47,MF Devolved Admin-Stationery,NR3 1QU,VENDOR
"Department for Business, Energy and Industrial Strategy","Department for Business, Energy and Industrial Strategy",06/03/2020,Stationery,"Industrial Strategy, Science and Innovation - Science and Research",Banner Group Limited,209782,65.33,MF Devolved Admin-Stationery,NR3 1QU,VENDOR
"Department for Business, Energy and Industrial Strategy","Department for Business, Energy and Industrial Strategy",06/03/2020,Stationery,"Industrial Strategy, Science and Innovation - Science and Research",Banner Group Limited,209782,67.45,MF Devolved Admin-Stationery,NR3 1QU,VENDOR
"Department for Business, Energy and Industrial Strategy","Department for Business, Energy and Industrial Strategy",06/03/2020,Stationery,"Industrial Strategy, Science and Innovation - Science and Research",Banner Group Limited,209782,125.5,MF Devolved Admin-Stationery,NR3 1QU,VENDOR
"Department for Business, Energy and Industrial Strategy","Department for Business, Energy and Industrial Strategy",06/03/2020,Stationery,"Industrial Strategy, Science and Innovation - Science and Research",Banner Group Limited,209782,139.44,MF Devolved Admin-Stationery,NR3 1QU,VENDOR
"Department for Business, Energy and Industrial Strategy","Department for Business, Energy and Industrial Strategy",06/03/2020,Stationery,"Industrial Strategy, Science and Innovation - Science and Research",Banner Group Limited,209782,268.62,MF Devolved Admin-Stationery,NR3 1QU,VENDOR
"Department for Business, Energy and Industrial Strategy","Department for Business, Energy and Industrial Strategy",11/03/2020,Telecoms Equipment,Corporate Services - Legal Services,DAISY COMMUNICATIONS LTD,218194,33.89,Legal Services Admin-Telecoms Equipment,BB9 5SR,VENDOR
"Department for Business, Energy and Industrial Strategy","Department for Business, Energy and Industrial Strategy",11/03/2020,Telecoms Equipment,Corporate Services - Legal Services,DAISY COMMUNICATIONS LTD,218196,35.99,Legal Services Admin-Telecoms Equipment,BB9 5SR,VENDOR
"Department for Business, Energy and Industrial Strategy","Department for Business, Energy and Industrial Strategy",02/03/2020,Clearing Account   - Cost - Computer Equipment,"Corporate Services - Digital, Data & Technology",SPECIALIST COMPUTER CENTRES (SSC),251108,-66894.23,Digital Infrastructure and Maintenance-Clearing Account   - Cost - Computer Equipment,B11 2LE,VENDOR
"Department for Business, Energy and Industrial Strategy","Department for Business, Energy and Industrial Strategy",03/03/2020,Payment for Shared Services,"Corporate Services - Digital, Data & Technology",Shared Services Connected Ltd,269956,-191,MF Devolved Admin-Payment for Shared Services,HP2 7AH,VENDOR
"Department for Business, Energy and Industrial Strategy","Department for Business, Energy and Industrial Strategy",03/03/2020,Payment for Shared Services,"Corporate Services - Digital, Data & Technology",Shared Services Connected Ltd,269956,96,MF Devolved Admin-Payment for Shared Services,HP2 7AH,VENDOR
"Department for Business, Energy and Industrial Strategy","Department for Business, Energy and Industrial Strategy",05/03/2020,Other Accommodation Charges,Corporate Services - Commercial & Operations,ENVIRONMENT AGENCY,270721,1290,MF Devolved Admin-Other Accommodation Charges,FY1 9JN,WGA ONLY
"Department for Business, Energy and Industrial Strategy","Department for Business, Energy and Industrial Strategy",11/03/2020,Current Grants To Private Sector - NPISH,Energy Transformation and Clean Growth - Science and Innovation,UNIVERSITY OF LEEDS,305396,-6000,IPCC Programme-Current Grants To Private Sector - NPISH,LS2 8JT,GRANT
"Department for Business, Energy and Industrial Strategy","Department for Business, Energy and Industrial Strategy",27/03/2020,Catering Services,"Trade, Europe and Analysis - Trade and Investment Negotiations",October Gallery Trust,309697,-440,MF Devolved Admin-Catering Services,N4 2LF,VENDOR
"Department for Business, Energy and Industrial Strategy","Department for Business, Energy and Industrial Strategy",27/03/2020,Catering Services,"Trade, Europe and Analysis - Trade and Investment Negotiations",October Gallery Trust,309697,18,MF Devolved Admin-Catering Services,N4 2LF,VENDOR
"Department for Business, Energy and Industrial Strategy","Department for Business, Energy and Industrial Strategy",27/03/2020,Catering Services,"Trade, Europe and Analysis - Trade and Investment Negotiations",October Gallery Trust,309697,865,MF Devolved Admin-Catering Services,N4 2LF,VENDOR
"Department for Business, Energy and Industrial Strategy","Department for Business, Energy and Industrial Strategy",05/03/2020,Current Grants To Private Sector - NPISH,Energy Transformation and Clean Growth - International Energy and Climate Finance,Foreign and Commonwealth Office (FCO),312474,-7915.95,International Climate Finance (ICF)-Current Grants To Private Sector - NPISH,MK10 1PX,WGA ONLY
"Department for Business, Energy and Industrial Strategy","Department for Business, Energy and Industrial Strategy",05/03/2020,Current Grants To Private Sector - NPISH,Energy Transformation and Clean Growth - International Energy and Climate Finance,Foreign and Commonwealth Office (FCO),312474,10610.21,International Climate Finance (ICF)-Current Grants To Private Sector - NPISH,MK10 1PX,WGA ONLY
"Department for Business, Energy and Industrial Strategy","Department for Business, Energy and Industrial Strategy",06/03/2020,Current Grants To Private Sector - NPISH,Energy Transformation and Clean Growth - International Energy and Climate Finance,Foreign and Commonwealth Office (FCO),312799,-948.04,International Climate Finance (ICF)-Current Grants To Private Sector - NPISH,MK10 1PX,WGA ONLY
"Department for Business, Energy and Industrial Strategy","Department for Business, Energy and Industrial Strategy",06/03/2020,Current Grants To Private Sector - NPISH,Energy Transformation and Clean Growth - International Energy and Climate Finance,Foreign and Commonwealth Office (FCO),312799,1191.83,International Climate Finance (ICF)-Current Grants To Private Sector - NPISH,MK10 1PX,WGA ONLY
"Department for Business, Energy and Industrial Strategy","Department for Business, Energy and Industrial Strategy",13/03/2020,Training And Development Expenditure,Corporate Services - Finance & Portfolio,THE WHITEHALL AND INDUSTRY GROUP,313809,-495,MF Devolved Admin-Training And Development Expenditure,SW1H 9AA,VENDOR
"Department for Business, Energy and Industrial Strategy","Department for Business, Energy and Industrial Strategy",13/03/2020,Training And Development Expenditure,Corporate Services - Finance & Portfolio,THE WHITEHALL AND INDUSTRY GROUP,313809,990,MF Devolved Admin-Training And Development Expenditure,SW1H 9AA,VENDOR
"Department for Business, Energy and Industrial Strategy","Department for Business, Energy and Industrial Strategy",24/03/2020,Central Telecommunications Services,"Corporate Services - Digital, Data & Technology",CMC COMMUNICATIONS LTD,314529,777.6,MF Devolved Admin-Central Telecommunications Services,SL5 8LH,VENDOR
"Department for Business, Energy and Industrial Strategy","Department for Business, Energy and Industrial Strategy",24/03/2020,Central Telecommunications Services,"Corporate Services - Digital, Data & Technology",CMC COMMUNICATIONS LTD,314530,3369.6,MF Devolved Admin-Central Telecommunications Services,SL5 8LH,VENDOR
"Department for Business, Energy and Industrial Strategy","Department for Business, Energy and Industrial Strategy",24/03/2020,Central Telecommunications Services,"Corporate Services - Digital, Data & Technology",CMC COMMUNICATIONS LTD,314531,5265,MF Devolved Admin-Central Telecommunications Services,SL5 8LH,VENDOR
"Department for Business, Energy and Industrial Strategy","Department for Business, Energy and Industrial Strategy",24/03/2020,Central Telecommunications Services,"Corporate Services - Digital, Data & Technology",CMC COMMUNICATIONS LTD,314532,5265,MF Devolved Admin-Central Telecommunications Services,SL5 8LH,VENDOR
"Department for Business, Energy and Industrial Strategy","Department for Business, Energy and Industrial Strategy",24/03/2020,Central Telecommunications Services,"Corporate Services - Digital, Data & Technology",CMC COMMUNICATIONS LTD,314533,5265,MF Devolved Admin-Central Telecommunications Services,SL5 8LH,VENDOR
"Department for Business, Energy and Industrial Strategy","Department for Business, Energy and Industrial Strategy",24/03/2020,Central Telecommunications Services,"Corporate Services - Digital, Data & Technology",CMC COMMUNICATIONS LTD,314534,5265,MF Devolved Admin-Central Telecommunications Services,SL5 8LH,VENDOR
"Department for Business, Energy and Industrial Strategy","Department for Business, Energy and Industrial Strategy",24/03/2020,Central Telecommunications Services,"Corporate Services - Digital, Data & Technology",CMC COMMUNICATIONS LTD,314535,3369.6,MF Devolved Admin-Central Telecommunications Services,SL5 8LH,VENDOR
"Department for Business, Energy and Industrial Strategy","Department for Business, Energy and Industrial Strategy",18/03/2020,Bike Loan,Corporate Services - Human Resources,Edenred (UK Group) Ltd,320120,2597.13,MF Non Devolved Admin-Bike Loan,SW1V 2RS,VENDOR
"Department for Business, Energy and Industrial Strategy","Department for Business, Energy and Industrial Strategy",18/03/2020,Personnel-related Expenditure,Corporate Services - Human Resources,Edenred (UK Group) Ltd,320386,-3165,MF Non Devolved Admin-Personnel-related Expenditure,SW1V 2RS,VENDOR
"Department for Business, Energy and Industrial Strategy","Department for Business, Energy and Industrial Strategy",18/03/2020,Bike Loan,Corporate Services - Human Resources,Edenred (UK Group) Ltd,320386,1899,MF Non Devolved Admin-Bike Loan,SW1V 2RS,VENDOR
"Department for Business, Energy and Industrial Strategy","Department for Business, Energy and Industrial Strategy",18/03/2020,Personnel-related Expenditure,Corporate Services - Human Resources,Edenred (UK Group) Ltd,320386,3165,MF Non Devolved Admin-Personnel-related Expenditure,SW1V 2RS,VENDOR
"Department for Business, Energy and Industrial Strategy","Department for Business, Energy and Industrial Strategy",18/03/2020,Stationery,Energy and Security - Nuclear Directorate,Banner Group Limited,320975,115.54,MF Devolved Admin-Stationery,NR3 1QU,VENDOR
"Department for Business, Energy and Industrial Strategy","Department for Business, Energy and Industrial Strategy",06/03/2020,Current Grants To Private Sector - NPISH,Energy Transformation and Clean Growth - International Energy and Climate Finance,Foreign and Commonwealth Office (FCO),325142,-449.55,International Climate Finance (ICF)-Current Grants To Private Sector - NPISH,MK10 1PX,WGA ONLY
"Department for Business, Energy and Industrial Strategy","Department for Business, Energy and Industrial Strategy",06/03/2020,Current Grants To Private Sector - NPISH,Energy Transformation and Clean Growth - International Energy and Climate Finance,Foreign and Commonwealth Office (FCO),325142,899.1,International Climate Finance (ICF)-Current Grants To Private Sector - NPISH,MK10 1PX,WGA ONLY
"Department for Business, Energy and Industrial Strategy","Department for Business, Energy and Industrial Strategy",24/03/2020,Central Telecommunications Services,"Corporate Services - Digital, Data & Technology",BRITISH TELECOMMUNICATIONS plc (BT),325882,40,MF Devolved Admin-Central Telecommunications Services,DH98 1BT,VENDOR
"Department for Business, Energy and Industrial Strategy","Department for Business, Energy and Industrial Strategy",24/03/2020,Central Telecommunications Services,"Corporate Services - Digital, Data & Technology",BRITISH TELECOMMUNICATIONS plc (BT),325882,102.96,MF Devolved Admin-Central Telecommunications Services,DH98 1BT,VENDOR
"Department for Business, Energy and Industrial Strategy","Department for Business, Energy and Industrial Strategy",25/03/2020,Other Professional Services,Market Frameworks - Office for Product Safety and Standards,STORMNET MEDIA LTD,326134,745.25,OPSS: Primary Authority-Other Professional Services,B60 3ET,VENDOR
"Department for Business, Energy and Industrial Strategy","Department for Business, Energy and Industrial Strategy",31/03/2020,Training And Development Expenditure,Corporate Services - Human Resources,Korn Ferry (UK) Ltd,326150,1113.1,MF Non Devolved Admin-Training And Development Expenditure,SW1Y 6QB,VENDOR
"Department for Business, Energy and Industrial Strategy","Department for Business, Energy and Industrial Strategy",31/03/2020,Learning and Dev - CS Skills,Corporate Services - Human Resources,Korn Ferry (UK) Ltd,326150,1532.9,MF Non Devolved Admin-Learning and Dev - CS Skills,SW1Y 6QB,VENDOR
"Department for Business, Energy and Industrial Strategy","Department for Business, Energy and Industrial Strategy",18/03/2020,Bike Loan,Corporate Services - Human Resources,Edenred (UK Group) Ltd,327351,2597.13,MF Non Devolved Admin-Bike Loan,SW1V 2RS,VENDOR
"Department for Business, Energy and Industrial Strategy","Department for Business, Energy and Industrial Strategy",18/03/2020,Current Grants To Private Sector - NPISH,Energy Transformation and Clean Growth - International Energy and Climate Finance,GRUPO E3 SAS,327535,47175.98,International Climate Finance (ICF)-Current Grants To Private Sector - NPISH,.,GRANT
"Department for Business, Energy and Industrial Strategy","Department for Business, Energy and Industrial Strategy",11/03/2020,Personnel-related Expenditure,Corporate Services - Human Resources,Edenred (UK Group) Ltd,327561,-937.8,MF Non Devolved Admin-Personnel-related Expenditure,SW1V 2RS,VENDOR
"Department for Business, Energy and Industrial Strategy","Department for Business, Energy and Industrial Strategy",04/03/2020,Research and Development Expenditure,Energy Transformation and Clean Growth - Clean Heat,NATIONAL CENTRE FOR SOCIAL RESEARCH (NATCEN),327801,117867.73,BEST team Programme costs-Research and Development Expenditure,EC1V 0AX,VENDOR
"Department for Business, Energy and Industrial Strategy","Department for Business, Energy and Industrial Strategy",10/03/2020,Translations,"Trade, Europe and Analysis - Economic Partnerships Directorate",Cabinet Office,327944,-244529.21,Departmental Programme Translation Work-Translations,FY1 9JN,WGA ONLY
"Department for Business, Energy and Industrial Strategy","Department for Business, Energy and Industrial Strategy",10/03/2020,Translations,"Trade, Europe and Analysis - Economic Partnerships Directorate",Cabinet Office,327944,20000,Departmental Programme Translation Work-Translations,FY1 9JN,WGA ONLY
"Department for Business, Energy and Industrial Strategy","Department for Business, Energy and Industrial Strategy",10/03/2020,Translations,"Trade, Europe and Analysis - Economic Partnerships Directorate",Cabinet Office,327944,469058.42,Departmental Programme Translation Work-Translations,FY1 9JN,WGA ONLY
"Department for Business, Energy and Industrial Strategy","Department for Business, Energy and Industrial Strategy",11/03/2020,Other ICT Costs,Corporate Services - Communications,Granicus LLC,329225,447.34,MF Devolved Admin-Other ICT Costs,55102,VENDOR
"Department for Business, Energy and Industrial Strategy","Department for Business, Energy and Industrial Strategy",12/03/2020,Hire of Interim Managers,Corporate Services - Finance & Portfolio,Allen Lane Ltd,329548,4109.04,MF Devolved Admin-Hire of Interim Managers,BN11 2BW,VENDOR
"Department for Business, Energy and Industrial Strategy","Department for Business, Energy and Industrial Strategy",09/03/2020,Clearing Account   - Cost - Computer Equipment,"Corporate Services - Digital, Data & Technology",Insight Direct UK Limited,329660,-2646.6,Digital Infrastructure and Maintenance-Clearing Account   - Cost - Computer Equipment,UB8 1PH,VENDOR
"Department for Business, Energy and Industrial Strategy","Department for Business, Energy and Industrial Strategy",09/03/2020,Clearing Account   - Cost - Computer Equipment,"Corporate Services - Digital, Data & Technology",Insight Direct UK Limited,329660,4090.2,Digital Infrastructure and Maintenance-Clearing Account   - Cost - Computer Equipment,UB8 1PH,VENDOR
"Department for Business, Energy and Industrial Strategy","Department for Business, Energy and Industrial Strategy",13/03/2020,Hire of Agency Staff,"Industrial Strategy, Science and Innovation - Industrial Strategy",Hays Specialist Recruitment Ltd,329694,1065.6,EU Exit Core BEIS Staff: No specific DExEU issue ADM-Hire of Agency Staff,KT3 4JQ,VENDOR
"Department for Business, Energy and Industrial Strategy","Department for Business, Energy and Industrial Strategy",11/03/2020,Other Professional Services,Market Frameworks - Office for Product Safety and Standards,Cabinet Office,330034,1091.5,OPSS: National Capacity Market Surveillance and Consumer-Other Professional Services,FY5 3FW,WGA ONLY
"Department for Business, Energy and Industrial Strategy","Department for Business, Energy and Industrial Strategy",11/03/2020,Personnel-related Expenditure,Corporate Services - Human Resources,Edenred (UK Group) Ltd,330040,-5787.31,MF Non Devolved Admin-Personnel-related Expenditure,SW1V 2RS,VENDOR
"Department for Business, Energy and Industrial Strategy","Department for Business, Energy and Industrial Strategy",11/03/2020,Bike Loan,Corporate Services - Human Resources,Edenred (UK Group) Ltd,330040,3885.85,MF Non Devolved Admin-Bike Loan,SW1V 2RS,VENDOR
"Department for Business, Energy and Industrial Strategy","Department for Business, Energy and Industrial Strategy",11/03/2020,Personnel-related Expenditure,Corporate Services - Human Resources,Edenred (UK Group) Ltd,330040,5879.7,MF Non Devolved Admin-Personnel-related Expenditure,SW1V 2RS,VENDOR
"Department for Business, Energy and Industrial Strategy","Department for Business, Energy and Industrial Strategy",17/03/2020,Business Rates,"Industrial Strategy, Science and Innovation - Industrial Strategy",Confederation Of British Industry (CBI),330252,-17626.11,Industrial Strategy - IS Council-Business Rates,EC4N 6HN,VENDOR
"Department for Business, Energy and Industrial Strategy","Department for Business, Energy and Industrial Strategy",17/03/2020,Business Rates,"Industrial Strategy, Science and Innovation - Industrial Strategy",Confederation Of British Industry (CBI),330252,35252.22,Industrial Strategy - IS Council-Business Rates,EC4N 6HN,VENDOR
"Department for Business, Energy and Industrial Strategy","Department for Business, Energy and Industrial Strategy",13/03/2020,Advertising,Energy and Security - Energy Development and Resilience,Cabinet Office,330253,942,Independent Monitoring Work - Unconventional Gas and Oil-Advertising,SW1A 2HQ,WGA ONLY
"Department for Business, Energy and Industrial Strategy","Department for Business, Energy and Industrial Strategy",27/03/2020,Clearing Account   - Cost - Computer Equipment,"Corporate Services - Digital, Data & Technology",Insight Direct UK Limited,331012,-6855.6,Digital Infrastructure and Maintenance-Clearing Account   - Cost - Computer Equipment,UB8 1PH,VENDOR
"Department for Business, Energy and Industrial Strategy","Department for Business, Energy and Industrial Strategy",27/03/2020,Clearing Account   - Cost - Computer Equipment,"Corporate Services - Digital, Data & Technology",Insight Direct UK Limited,331012,10968.96,Digital Infrastructure and Maintenance-Clearing Account   - Cost - Computer Equipment,UB8 1PH,VENDOR
"Department for Business, Energy and Industrial Strategy","Department for Business, Energy and Industrial Strategy",03/03/2020,Consultancy Expenditure,"Trade, Europe and Analysis - Trade and Europe Portfolio Directorate",Cabinet Office,331030,-249131.5,EU Exit: Negotiations ADM-Consultancy Expenditure,SW1A 2HQ,WGA ONLY
"Department for Business, Energy and Industrial Strategy","Department for Business, Energy and Industrial Strategy",03/03/2020,Consultancy Expenditure,Corporate Services - Commercial & Operations,Cabinet Office,331030,95317.5,EU Exit: Commercial ADM-Consultancy Expenditure,SW1A 2HQ,WGA ONLY
"Department for Business, Energy and Industrial Strategy","Department for Business, Energy and Industrial Strategy",03/03/2020,Consultancy Expenditure,"Trade, Europe and Analysis - Trade and Europe Portfolio Directorate",Cabinet Office,331030,402945.5,EU Exit: Negotiations ADM-Consultancy Expenditure,SW1A 2HQ,WGA ONLY
"Department for Business, Energy and Industrial Strategy","Department for Business, Energy and Industrial Strategy",11/03/2020,Purchase of Intangible Software,"Corporate Services - Digital, Data & Technology",SOFTWARE BOX LTD,331055,2770.32,MF Devolved Admin-Purchase of Intangible Software,YO61 1ET,VENDOR
"Department for Business, Energy and Industrial Strategy","Department for Business, Energy and Industrial Strategy",06/03/2020,Central Telecommunications Services,"Corporate Services - Digital, Data & Technology",Vodafone Sales & Services Limited,331056,114.08,MF Devolved Admin-Central Telecommunications Services,RG14 1LA,VENDOR
"Department for Business, Energy and Industrial Strategy","Department for Business, Energy and Industrial Strategy",06/03/2020,Central Telecommunications Services,"Corporate Services - Digital, Data & Technology",Vodafone Sales & Services Limited,331056,410.4,MF Devolved Admin-Central Telecommunications Services,RG14 1LA,VENDOR
"Department for Business, Energy and Industrial Strategy","Department for Business, Energy and Industrial Strategy",11/03/2020,Purchase of Intangible Software,"Corporate Services - Digital, Data & Technology",SOFTWARE BOX LTD,331058,17.3,MF Devolved Admin-Purchase of Intangible Software,YO61 1ET,VENDOR
"Department for Business, Energy and Industrial Strategy","Department for Business, Energy and Industrial Strategy",20/03/2020,R & D Outsourced Other,Energy Transformation and Clean Growth - Science and Innovation,Hildebrand Technology Ltd,331257,6086.81,Innovation Delivery SMART Systems and Integration-R & D Outsourced Other,W1T 3JL,VENDOR
"Department for Business, Energy and Industrial Strategy","Department for Business, Energy and Industrial Strategy",11/03/2020,Training And Development Expenditure,Corporate Services - Human Resources,KPMG LLP,331334,1250,MF Non Devolved Admin-Training And Development Expenditure,WD17 1DE,VENDOR
"Department for Business, Energy and Industrial Strategy","Department for Business, Energy and Industrial Strategy",11/03/2020,Hire of Interim Managers,Energy Transformation and Clean Growth - Industrial Energy,Allen Lane Ltd,331452,3989.04,UK role in EU ETS-Hire of Interim Managers,BN11 2BW,VENDOR
"Department for Business, Energy and Industrial Strategy","Department for Business, Energy and Industrial Strategy",11/03/2020,Purchase of Intangible Software,"Corporate Services - Digital, Data & Technology",SOFTWARE BOX LTD,331554,38336.92,MF Devolved Admin-Purchase of Intangible Software,YO61 1ET,VENDOR
"Department for Business, Energy and Industrial Strategy","Department for Business, Energy and Industrial Strategy",03/03/2020,Technical Advice / Services & Support,Market Frameworks - Office for Product Safety and Standards,HAFOD SOLUTIONS LTD,332109,-1185,OPSS: Primary Authority-Technical Advice / Services & Support,CF46 5DA,VENDOR
"Department for Business, Energy and Industrial Strategy","Department for Business, Energy and Industrial Strategy",03/03/2020,Technical Advice / Services & Support,Market Frameworks - Office for Product Safety and Standards,HAFOD SOLUTIONS LTD,332109,1790,OPSS: Primary Authority-Technical Advice / Services & Support,CF46 5DA,VENDOR
"Department for Business, Energy and Industrial Strategy","Department for Business, Energy and Industrial Strategy",05/03/2020,Current Grants To Private Sector - NPISH,Energy Transformation and Clean Growth - International Energy and Climate Finance,Foreign and Commonwealth Office (FCO),332276,-26.4,International Climate Finance (ICF)-Current Grants To Private Sector - NPISH,MK10 1PX,WGA ONLY
"Department for Business, Energy and Industrial Strategy","Department for Business, Energy and Industrial Strategy",05/03/2020,Current Grants To Private Sector - NPISH,Energy Transformation and Clean Growth - International Energy and Climate Finance,Foreign and Commonwealth Office (FCO),332276,52.8,International Climate Finance (ICF)-Current Grants To Private Sector - NPISH,MK10 1PX,WGA ONLY
"Department for Business, Energy and Industrial Strategy","Department for Business, Energy and Industrial Strategy",11/03/2020,Misc. Non Procurement Spend,Corporate Services - Human Resources,Inline Policy Ltd,332301,11050,EU Exit: HR ADM-Misc. Non Procurement Spend,SE11 5JH,VENDOR
"Department for Business, Energy and Industrial Strategy","Department for Business, Energy and Industrial Strategy",12/03/2020,Clearing - Cost - Assets Under Construction - Internally Developed Software,Market Frameworks - Office for Product Safety and Standards,AdRoc Ltd,332450,-7500,EU Markets Surveillance-Clearing - Cost - Assets Under Construction - Internally Developed Software,EC2N 1HN,VENDOR
"Department for Business, Energy and Industrial Strategy","Department for Business, Energy and Industrial Strategy",12/03/2020,Clearing - Cost - Assets Under Construction - Internally Developed Software,Market Frameworks - Office for Product Safety and Standards,AdRoc Ltd,332450,16440,EU Markets Surveillance-Clearing - Cost - Assets Under Construction - Internally Developed Software,EC2N 1HN,VENDOR
"Department for Business, Energy and Industrial Strategy","Department for Business, Energy and Industrial Strategy",09/03/2020,Other IT Consultancy,"Corporate Services - Digital, Data & Technology",Triad Group Plc,332638,-5464,MF Devolved Admin-Other IT Consultancy,MK7 8LE,VENDOR
"Department for Business, Energy and Industrial Strategy","Department for Business, Energy and Industrial Strategy",09/03/2020,Other IT Consultancy,"Corporate Services - Digital, Data & Technology",Triad Group Plc,332638,10928,MF Devolved Admin-Other IT Consultancy,MK7 8LE,VENDOR
"Department for Business, Energy and Industrial Strategy","Department for Business, Energy and Industrial Strategy",05/03/2020,Purchase of Intangible Software,"Corporate Services - Digital, Data & Technology",SPECIALIST COMPUTER CENTRES (SSC),332920,-4159.6,MF Devolved Admin-Purchase of Intangible Software,B11 2LE,VENDOR
"Department for Business, Energy and Industrial Strategy","Department for Business, Energy and Industrial Strategy",05/03/2020,Purchase of Intangible Software,"Corporate Services - Digital, Data & Technology",SPECIALIST COMPUTER CENTRES (SSC),332920,9151.12,MF Devolved Admin-Purchase of Intangible Software,B11 2LE,VENDOR
"Department for Business, Energy and Industrial Strategy","Department for Business, Energy and Industrial Strategy",04/03/2020,Catering Services,Energy and Security - Nuclear Directorate,INSTITUTE OF DIRECTORS,333081,-2094,MF Devolved Admin-Catering Services,SW1Y 5ED,VENDOR
"Department for Business, Energy and Industrial Strategy","Department for Business, Energy and Industrial Strategy",04/03/2020,Catering Services,Energy and Security - Nuclear Directorate,INSTITUTE OF DIRECTORS,333081,104,MF Devolved Admin-Catering Services,SW1Y 5ED,VENDOR
"Department for Business, Energy and Industrial Strategy","Department for Business, Energy and Industrial Strategy",04/03/2020,Catering Services,Energy and Security - Nuclear Directorate,INSTITUTE OF DIRECTORS,333081,846,MF Devolved Admin-Catering Services,SW1Y 5ED,VENDOR
"Department for Business, Energy and Industrial Strategy","Department for Business, Energy and Industrial Strategy",04/03/2020,Catering Services,Energy and Security - Nuclear Directorate,INSTITUTE OF DIRECTORS,333081,2614,MF Devolved Admin-Catering Services,SW1Y 5ED,VENDOR
"Department for Business, Energy and Industrial Strategy","Department for Business, Energy and Industrial Strategy",11/03/2020,Other ICT Costs,Corporate Services - Communications,Granicus LLC,333298,447.34,MF Devolved Admin-Other ICT Costs,55102,VENDOR
"Department for Business, Energy and Industrial Strategy","Department for Business, Energy and Industrial Strategy",10/03/2020,R & D Current Grants to Central Government,"Industrial Strategy, Science and Innovation - International Science and Innovation",Foreign and Commonwealth Office (FCO),333315,86.88,Newton Fund - Peru-R & D Current Grants to Central Government,MK10 1PX,WGA ONLY
"Department for Business, Energy and Industrial Strategy","Department for Business, Energy and Industrial Strategy",10/03/2020,R & D Current Grants to Central Government,"Industrial Strategy, Science and Innovation - International Science and Innovation",Foreign and Commonwealth Office (FCO),333316,26.5,NEWTON FUND - Turkey-R & D Current Grants to Central Government,MK10 1PX,WGA ONLY
"Department for Business, Energy and Industrial Strategy","Department for Business, Energy and Industrial Strategy",10/03/2020,R & D Current Grants to Central Government,"Industrial Strategy, Science and Innovation - International Science and Innovation",Foreign and Commonwealth Office (FCO),333317,73.61,NEWTON FUND - Turkey-R & D Current Grants to Central Government,MK10 1PX,WGA ONLY
"Department for Business, Energy and Industrial Strategy","Department for Business, Energy and Industrial Strategy",10/03/2020,R & D Current Grants to Central Government,"Industrial Strategy, Science and Innovation - International Science and Innovation",Foreign and Commonwealth Office (FCO),333318,7,NEWTON FUND - South Africa and wider Africa-R & D Current Grants to Central Government,MK10 1PX,WGA ONLY
"Department for Business, Energy and Industrial Strategy","Department for Business, Energy and Industrial Strategy",10/03/2020,R & D Current Grants to Central Government,"Industrial Strategy, Science and Innovation - International Science and Innovation",Foreign and Commonwealth Office (FCO),333319,7.12,NEWTON FUND - South Africa and wider Africa-R & D Current Grants to Central Government,MK10 1PX,WGA ONLY
"Department for Business, Energy and Industrial Strategy","Department for Business, Energy and Industrial Strategy",10/03/2020,R & D Current Grants to Central Government,"Industrial Strategy, Science and Innovation - International Science and Innovation",Foreign and Commonwealth Office (FCO),333320,0.54,NEWTON FUND - South Africa and wider Africa-R & D Current Grants to Central Government,MK10 1PX,WGA ONLY
"Department for Business, Energy and Industrial Strategy","Department for Business, Energy and Industrial Strategy",10/03/2020,R & D Current Grants to Central Government,"Industrial Strategy, Science and Innovation - International Science and Innovation",Foreign and Commonwealth Office (FCO),333321,4.38,NEWTON FUND - South Africa and wider Africa-R & D Current Grants to Central Government,MK10 1PX,WGA ONLY
"Department for Business, Energy and Industrial Strategy","Department for Business, Energy and Industrial Strategy",10/03/2020,R & D Current Grants to Central Government,"Industrial Strategy, Science and Innovation - International Science and Innovation",Foreign and Commonwealth Office (FCO),333322,5.48,NEWTON FUND - South Africa and wider Africa-R & D Current Grants to Central Government,MK10 1PX,WGA ONLY
"Department for Business, Energy and Industrial Strategy","Department for Business, Energy and Industrial Strategy",10/03/2020,R & D Current Grants to Central Government,"Industrial Strategy, Science and Innovation - International Science and Innovation",Foreign and Commonwealth Office (FCO),333323,5.49,NEWTON FUND - South Africa and wider Africa-R & D Current Grants to Central Government,MK10 1PX,WGA ONLY
"Department for Business, Energy and Industrial Strategy","Department for Business, Energy and Industrial Strategy",10/03/2020,R & D Current Grants to Central Government,"Industrial Strategy, Science and Innovation - International Science and Innovation",Foreign and Commonwealth Office (FCO),333324,7.77,NEWTON FUND - South Africa and wider Africa-R & D Current Grants to Central Government,MK10 1PX,WGA ONLY
"Department for Business, Energy and Industrial Strategy","Department for Business, Energy and Industrial Strategy",10/03/2020,R & D Corporate Event Management and Marketing,"Industrial Strategy, Science and Innovation - International Science and Innovation",Foreign and Commonwealth Office (FCO),333325,29.69,NEWTON FUND - Regional conferences/Other Activities-R & D Corporate Event Management and Marketing,MK10 1PX,WGA ONLY
"Department for Business, Energy and Industrial Strategy","Department for Business, Energy and Industrial Strategy",10/03/2020,R & D Corporate Event Management and Marketing,"Industrial Strategy, Science and Innovation - International Science and Innovation",Foreign and Commonwealth Office (FCO),333326,96.12,NEWTON FUND - Regional conferences/Other Activities-R & D Corporate Event Management and Marketing,MK10 1PX,WGA ONLY
"Department for Business, Energy and Industrial Strategy","Department for Business, Energy and Industrial Strategy",10/03/2020,R & D Corporate Event Management and Marketing,"Industrial Strategy, Science and Innovation - International Science and Innovation",Foreign and Commonwealth Office (FCO),333327,40.7,NEWTON FUND - Regional conferences/Other Activities-R & D Corporate Event Management and Marketing,MK10 1PX,WGA ONLY
"Department for Business, Energy and Industrial Strategy","Department for Business, Energy and Industrial Strategy",10/03/2020,R & D Corporate Event Management and Marketing,"Industrial Strategy, Science and Innovation - International Science and Innovation",Foreign and Commonwealth Office (FCO),333328,65.12,NEWTON FUND - Regional conferences/Other Activities-R & D Corporate Event Management and Marketing,MK10 1PX,WGA ONLY
"Department for Business, Energy and Industrial Strategy","Department for Business, Energy and Industrial Strategy",10/03/2020,R & D Corporate Event Management and Marketing,"Industrial Strategy, Science and Innovation - International Science and Innovation",Foreign and Commonwealth Office (FCO),333329,-417.18,NEWTON FUND - Regional conferences/Other Activities-R & D Corporate Event Management and Marketing,MK10 1PX,WGA ONLY
"Department for Business, Energy and Industrial Strategy","Department for Business, Energy and Industrial Strategy",10/03/2020,R & D Corporate Event Management and Marketing,"Industrial Strategy, Science and Innovation - International Science and Innovation",Foreign and Commonwealth Office (FCO),333329,834.36,NEWTON FUND - Regional conferences/Other Activities-R & D Corporate Event Management and Marketing,MK10 1PX,WGA ONLY
"Department for Business, Energy and Industrial Strategy","Department for Business, Energy and Industrial Strategy",10/03/2020,R & D Current Grants to Central Government,"Industrial Strategy, Science and Innovation - International Science and Innovation",Foreign and Commonwealth Office (FCO),333330,124.95,Newton Fund - Peru-R & D Current Grants to Central Government,MK10 1PX,WGA ONLY
"Department for Business, Energy and Industrial Strategy","Department for Business, Energy and Industrial Strategy",10/03/2020,R & D Corporate Event Management and Marketing,"Industrial Strategy, Science and Innovation - International Science and Innovation",Foreign and Commonwealth Office (FCO),333331,120.5,NEWTON FUND - Regional conferences/Other Activities-R & D Corporate Event Management and Marketing,MK10 1PX,WGA ONLY
"Department for Business, Energy and Industrial Strategy","Department for Business, Energy and Industrial Strategy",10/03/2020,R & D Corporate Event Management and Marketing,"Industrial Strategy, Science and Innovation - International Science and Innovation",Foreign and Commonwealth Office (FCO),333332,1537.18,NEWTON FUND - Regional conferences/Other Activities-R & D Corporate Event Management and Marketing,MK10 1PX,WGA ONLY
"Department for Business, Energy and Industrial Strategy","Department for Business, Energy and Industrial Strategy",10/03/2020,R & D Current Grants to Central Government,"Industrial Strategy, Science and Innovation - International Science and Innovation",Foreign and Commonwealth Office (FCO),333333,53.39,NEWTON FUND - Mexico-R & D Current Grants to Central Government,MK10 1PX,WGA ONLY
"Department for Business, Energy and Industrial Strategy","Department for Business, Energy and Industrial Strategy",10/03/2020,R & D Current Grants to Central Government,"Industrial Strategy, Science and Innovation - International Science and Innovation",Foreign and Commonwealth Office (FCO),333334,53.39,NEWTON FUND - Mexico-R & D Current Grants to Central Government,MK10 1PX,WGA ONLY
"Department for Business, Energy and Industrial Strategy","Department for Business, Energy and Industrial Strategy",10/03/2020,R & D Corporate Event Management and Marketing,"Industrial Strategy, Science and Innovation - International Science and Innovation",Foreign and Commonwealth Office (FCO),333335,20.6,NEWTON FUND - Regional conferences/Other Activities-R & D Corporate Event Management and Marketing,MK10 1PX,WGA ONLY
"Department for Business, Energy and Industrial Strategy","Department for Business, Energy and Industrial Strategy",10/03/2020,R & D Current Grants to Central Government,"Industrial Strategy, Science and Innovation - International Science and Innovation",Foreign and Commonwealth Office (FCO),333336,10.62,NEWTON FUND - Malaysia-R & D Current Grants to Central Government,MK10 1PX,WGA ONLY
"Department for Business, Energy and Industrial Strategy","Department for Business, Energy and Industrial Strategy",10/03/2020,R & D Current Grants to Central Government,"Industrial Strategy, Science and Innovation - International Science and Innovation",Foreign and Commonwealth Office (FCO),333337,11.24,NEWTON FUND - Malaysia-R & D Current Grants to Central Government,MK10 1PX,WGA ONLY
"Department for Business, Energy and Industrial Strategy","Department for Business, Energy and Industrial Strategy",10/03/2020,R & D Current Grants to Central Government,"Industrial Strategy, Science and Innovation - International Science and Innovation",Foreign and Commonwealth Office (FCO),333338,92.47,NEWTON FUND - Indonesia-R & D Current Grants to Central Government,MK10 1PX,WGA ONLY
"Department for Business, Energy and Industrial Strategy","Department for Business, Energy and Industrial Strategy",10/03/2020,R & D Current Grants to Central Government,"Industrial Strategy, Science and Innovation - International Science and Innovation",Foreign and Commonwealth Office (FCO),333339,120,NEWTON FUND - Indonesia-R & D Current Grants to Central Government,MK10 1PX,WGA ONLY
"Department for Business, Energy and Industrial Strategy","Department for Business, Energy and Industrial Strategy",10/03/2020,R & D Current Grants to Private Sector - NPISH,"Industrial Strategy, Science and Innovation - International Science and Innovation",Foreign and Commonwealth Office (FCO),333340,88.56,Newton Fund Prize-R & D Current Grants to Private Sector - NPISH,MK10 1PX,WGA ONLY
"Department for Business, Energy and Industrial Strategy","Department for Business, Energy and Industrial Strategy",10/03/2020,R & D Current Grants to Private Sector - NPISH,"Industrial Strategy, Science and Innovation - International Science and Innovation",Foreign and Commonwealth Office (FCO),333341,39.41,Newton Fund Prize-R & D Current Grants to Private Sector - NPISH,MK10 1PX,WGA ONLY
"Department for Business, Energy and Industrial Strategy","Department for Business, Energy and Industrial Strategy",10/03/2020,R & D Current Grants to Private Sector - NPISH,"Industrial Strategy, Science and Innovation - International Science and Innovation",Foreign and Commonwealth Office (FCO),333342,19.71,Newton Fund Prize-R & D Current Grants to Private Sector - NPISH,MK10 1PX,WGA ONLY
"Department for Business, Energy and Industrial Strategy","Department for Business, Energy and Industrial Strategy",10/03/2020,R & D Current Grants to Central Government,"Industrial Strategy, Science and Innovation - International Science and Innovation",Foreign and Commonwealth Office (FCO),333354,42.23,NEWTON FUND - Indonesia-R & D Current Grants to Central Government,MK10 1PX,WGA ONLY
"Department for Business, Energy and Industrial Strategy","Department for Business, Energy and Industrial Strategy",10/03/2020,R & D Current Grants to Central Government,"Industrial Strategy, Science and Innovation - International Science and Innovation",Foreign and Commonwealth Office (FCO),333355,1.58,NEWTON FUND - Malaysia-R & D Current Grants to Central Government,MK10 1PX,WGA ONLY
"Department for Business, Energy and Industrial Strategy","Department for Business, Energy and Industrial Strategy",10/03/2020,R & D Current Grants to Central Government,"Industrial Strategy, Science and Innovation - International Science and Innovation",Foreign and Commonwealth Office (FCO),333356,2.23,NEWTON FUND - Malaysia-R & D Current Grants to Central Government,MK10 1PX,WGA ONLY
"Department for Business, Energy and Industrial Strategy","Department for Business, Energy and Industrial Strategy",10/03/2020,R & D Current Grants to Central Government,"Industrial Strategy, Science and Innovation - International Science and Innovation",Foreign and Commonwealth Office (FCO),333357,2.41,NEWTON FUND - Malaysia-R & D Current Grants to Central Government,MK10 1PX,WGA ONLY
"Department for Business, Energy and Industrial Strategy","Department for Business, Energy and Industrial Strategy",10/03/2020,R & D Current Grants to Central Government,"Industrial Strategy, Science and Innovation - International Science and Innovation",Foreign and Commonwealth Office (FCO),333358,7.71,NEWTON FUND - Malaysia-R & D Current Grants to Central Government,MK10 1PX,WGA ONLY
"Department for Business, Energy and Industrial Strategy","Department for Business, Energy and Industrial Strategy",10/03/2020,R & D Current Grants to Central Government,"Industrial Strategy, Science and Innovation - International Science and Innovation",Foreign and Commonwealth Office (FCO),333359,8.08,NEWTON FUND - Malaysia-R & D Current Grants to Central Government,MK10 1PX,WGA ONLY
"Department for Business, Energy and Industrial Strategy","Department for Business, Energy and Industrial Strategy",10/03/2020,R & D Current Grants to Central Government,"Industrial Strategy, Science and Innovation - International Science and Innovation",Foreign and Commonwealth Office (FCO),333360,10.05,NEWTON FUND - Malaysia-R & D Current Grants to Central Government,MK10 1PX,WGA ONLY
"Department for Business, Energy and Industrial Strategy","Department for Business, Energy and Industrial Strategy",10/03/2020,R & D Current Grants to Central Government,"Industrial Strategy, Science and Innovation - International Science and Innovation",Foreign and Commonwealth Office (FCO),333361,11.33,NEWTON FUND - Malaysia-R & D Current Grants to Central Government,MK10 1PX,WGA ONLY
"Department for Business, Energy and Industrial Strategy","Department for Business, Energy and Industrial Strategy",10/03/2020,R & D Current Grants to Central Government,"Industrial Strategy, Science and Innovation - International Science and Innovation",Foreign and Commonwealth Office (FCO),333362,11.35,NEWTON FUND - Malaysia-R & D Current Grants to Central Government,MK10 1PX,WGA ONLY
"Department for Business, Energy and Industrial Strategy","Department for Business, Energy and Industrial Strategy",10/03/2020,R & D Current Grants to Central Government,"Industrial Strategy, Science and Innovation - International Science and Innovation",Foreign and Commonwealth Office (FCO),333363,12,NEWTON FUND - Malaysia-R & D Current Grants to Central Government,MK10 1PX,WGA ONLY
"Department for Business, Energy and Industrial Strategy","Department for Business, Energy and Industrial Strategy",10/03/2020,R & D Current Grants to Central Government,"Industrial Strategy, Science and Innovation - International Science and Innovation",Foreign and Commonwealth Office (FCO),333364,27.97,NEWTON FUND - Malaysia-R & D Current Grants to Central Government,MK10 1PX,WGA ONLY
"Department for Business, Energy and Industrial Strategy","Department for Business, Energy and Industrial Strategy",10/03/2020,R & D Corporate Event Management and Marketing,"Industrial Strategy, Science and Innovation - International Science and Innovation",Foreign and Commonwealth Office (FCO),333365,17.82,NEWTON FUND - Regional conferences/Other Activities-R & D Corporate Event Management and Marketing,MK10 1PX,WGA ONLY
"Department for Business, Energy and Industrial Strategy","Department for Business, Energy and Industrial Strategy",10/03/2020,R & D Current Grants to Central Government,"Industrial Strategy, Science and Innovation - International Science and Innovation",Foreign and Commonwealth Office (FCO),333366,1.32,NEWTON FUND - Brazil-R & D Current Grants to Central Government,MK10 1PX,WGA ONLY
"Department for Business, Energy and Industrial Strategy","Department for Business, Energy and Industrial Strategy",10/03/2020,R & D Current Grants to Central Government,"Industrial Strategy, Science and Innovation - International Science and Innovation",Foreign and Commonwealth Office (FCO),333367,1.39,NEWTON FUND - Brazil-R & D Current Grants to Central Government,MK10 1PX,WGA ONLY
"Department for Business, Energy and Industrial Strategy","Department for Business, Energy and Industrial Strategy",10/03/2020,R & D Current Grants to Central Government,"Industrial Strategy, Science and Innovation - International Science and Innovation",Foreign and Commonwealth Office (FCO),333368,1.95,NEWTON FUND - Brazil-R & D Current Grants to Central Government,MK10 1PX,WGA ONLY
"Department for Business, Energy and Industrial Strategy","Department for Business, Energy and Industrial Strategy",10/03/2020,R & D Current Grants to Central Government,"Industrial Strategy, Science and Innovation - International Science and Innovation",Foreign and Commonwealth Office (FCO),333369,2.96,NEWTON FUND - Brazil-R & D Current Grants to Central Government,MK10 1PX,WGA ONLY
"Department for Business, Energy and Industrial Strategy","Department for Business, Energy and Industrial Strategy",10/03/2020,R & D Current Grants to Central Government,"Industrial Strategy, Science and Innovation - International Science and Innovation",Foreign and Commonwealth Office (FCO),333370,3.27,NEWTON FUND - Brazil-R & D Current Grants to Central Government,MK10 1PX,WGA ONLY
"Department for Business, Energy and Industrial Strategy","Department for Business, Energy and Industrial Strategy",10/03/2020,R & D Current Grants to Central Government,"Industrial Strategy, Science and Innovation - International Science and Innovation",Foreign and Commonwealth Office (FCO),333371,59.86,NEWTON FUND - Brazil-R & D Current Grants to Central Government,MK10 1PX,WGA ONLY
"Department for Business, Energy and Industrial Strategy","Department for Business, Energy and Industrial Strategy",10/03/2020,R & D Corporate Event Management and Marketing,"Industrial Strategy, Science and Innovation - International Science and Innovation",Foreign and Commonwealth Office (FCO),333372,80,NEWTON FUND - Regional conferences/Other Activities-R & D Corporate Event Management and Marketing,MK10 1PX,WGA ONLY
"Department for Business, Energy and Industrial Strategy","Department for Business, Energy and Industrial Strategy",10/03/2020,R & D Corporate Event Management and Marketing,"Industrial Strategy, Science and Innovation - International Science and Innovation",Foreign and Commonwealth Office (FCO),333373,127.2,NEWTON FUND - Regional conferences/Other Activities-R & D Corporate Event Management and Marketing,MK10 1PX,WGA ONLY
"Department for Business, Energy and Industrial Strategy","Department for Business, Energy and Industrial Strategy",10/03/2020,R & D Corporate Event Management and Marketing,"Industrial Strategy, Science and Innovation - International Science and Innovation",Foreign and Commonwealth Office (FCO),333374,127.2,NEWTON FUND - Regional conferences/Other Activities-R & D Corporate Event Management and Marketing,MK10 1PX,WGA ONLY
"Department for Business, Energy and Industrial Strategy","Department for Business, Energy and Industrial Strategy",10/03/2020,R & D Corporate Event Management and Marketing,"Industrial Strategy, Science and Innovation - International Science and Innovation",Foreign and Commonwealth Office (FCO),333375,-915.09,NEWTON FUND - Regional conferences/Other Activities-R & D Corporate Event Management and Marketing,MK10 1PX,WGA ONLY
"Department for Business, Energy and Industrial Strategy","Department for Business, Energy and Industrial Strategy",10/03/2020,R & D Corporate Event Management and Marketing,"Industrial Strategy, Science and Innovation - International Science and Innovation",Foreign and Commonwealth Office (FCO),333375,1830.18,NEWTON FUND - Regional conferences/Other Activities-R & D Corporate Event Management and Marketing,MK10 1PX,WGA ONLY
"Department for Business, Energy and Industrial Strategy","Department for Business, Energy and Industrial Strategy",10/03/2020,R & D Corporate Event Management and Marketing,"Industrial Strategy, Science and Innovation - International Science and Innovation",Foreign and Commonwealth Office (FCO),333376,476.9,NEWTON FUND - Regional conferences/Other Activities-R & D Corporate Event Management and Marketing,MK10 1PX,WGA ONLY
"Department for Business, Energy and Industrial Strategy","Department for Business, Energy and Industrial Strategy",10/03/2020,R & D Current Grants to Central Government,"Industrial Strategy, Science and Innovation - International Science and Innovation",Foreign and Commonwealth Office (FCO),333378,926.37,NEWTON FUND - Turkey-R & D Current Grants to Central Government,MK10 1PX,WGA ONLY
"Department for Business, Energy and Industrial Strategy","Department for Business, Energy and Industrial Strategy",10/03/2020,Current Grants To Private Sector - NPISH,"Industrial Strategy, Science and Innovation - International Science and Innovation",Foreign and Commonwealth Office (FCO),333379,407.51,NEWTON FUND - South Africa and wider Africa-Current Grants To Private Sector - NPISH,MK10 1PX,WGA ONLY
"Department for Business, Energy and Industrial Strategy","Department for Business, Energy and Industrial Strategy",10/03/2020,R & D Current Grants to Central Government,"Industrial Strategy, Science and Innovation - International Science and Innovation",Foreign and Commonwealth Office (FCO),333380,11.51,NEWTON FUND - China-R & D Current Grants to Central Government,MK10 1PX,WGA ONLY
"Department for Business, Energy and Industrial Strategy","Department for Business, Energy and Industrial Strategy",10/03/2020,R & D Current Grants to Central Government,"Industrial Strategy, Science and Innovation - International Science and Innovation",Foreign and Commonwealth Office (FCO),333381,1215.5,NEWTON FUND - India-R & D Current Grants to Central Government,MK10 1PX,WGA ONLY
"Department for Business, Energy and Industrial Strategy","Department for Business, Energy and Industrial Strategy",10/03/2020,R & D Current Grants to Central Government,"Industrial Strategy, Science and Innovation - International Science and Innovation",Foreign and Commonwealth Office (FCO),333382,13.47,NEWTON FUND - Brazil-R & D Current Grants to Central Government,MK10 1PX,WGA ONLY
"Department for Business, Energy and Industrial Strategy","Department for Business, Energy and Industrial Strategy",10/03/2020,R & D Current Grants to Central Government,"Industrial Strategy, Science and Innovation - International Science and Innovation",Foreign and Commonwealth Office (FCO),333383,1849.64,NEWTON FUND - Brazil-R & D Current Grants to Central Government,MK10 1PX,WGA ONLY
"Department for Business, Energy and Industrial Strategy","Department for Business, Energy and Industrial Strategy",10/03/2020,R & D Current Grants to Central Government,"Industrial Strategy, Science and Innovation - International Science and Innovation",Foreign and Commonwealth Office (FCO),333384,129.03,NEWTON FUND - Brazil-R & D Current Grants to Central Government,MK10 1PX,WGA ONLY
"Department for Business, Energy and Industrial Strategy","Department for Business, Energy and Industrial Strategy",10/03/2020,R & D Current Grants to Central Government,"Industrial Strategy, Science and Innovation - International Science and Innovation",Foreign and Commonwealth Office (FCO),333385,116.3,NEWTON FUND - Brazil-R & D Current Grants to Central Government,MK10 1PX,WGA ONLY
"Department for Business, Energy and Industrial Strategy","Department for Business, Energy and Industrial Strategy",10/03/2020,R & D Current Grants to Central Government,"Industrial Strategy, Science and Innovation - International Science and Innovation",Foreign and Commonwealth Office (FCO),333386,1914.24,NEWTON FUND - Brazil-R & D Current Grants to Central Government,MK10 1PX,WGA ONLY
"Department for Business, Energy and Industrial Strategy","Department for Business, Energy and Industrial Strategy",10/03/2020,Current Grants To Private Sector - NPISH,"Industrial Strategy, Science and Innovation - International Science and Innovation",Foreign and Commonwealth Office (FCO),333387,1.68,NEWTON FUND - South Africa and wider Africa-Current Grants To Private Sector - NPISH,MK10 1PX,WGA ONLY
"Department for Business, Energy and Industrial Strategy","Department for Business, Energy and Industrial Strategy",10/03/2020,Current Grants To Private Sector - NPISH,"Industrial Strategy, Science and Innovation - International Science and Innovation",Foreign and Commonwealth Office (FCO),333388,34.72,NEWTON FUND - South Africa and wider Africa-Current Grants To Private Sector - NPISH,MK10 1PX,WGA ONLY
"Department for Business, Energy and Industrial Strategy","Department for Business, Energy and Industrial Strategy",10/03/2020,Current Grants To Private Sector - NPISH,"Industrial Strategy, Science and Innovation - International Science and Innovation",Foreign and Commonwealth Office (FCO),333389,6.16,Newton Fund - Singapore-Current Grants To Private Sector - NPISH,MK10 1PX,WGA ONLY
"Department for Business, Energy and Industrial Strategy","Department for Business, Energy and Industrial Strategy",10/03/2020,Current Grants To Private Sector - NPISH,"Industrial Strategy, Science and Innovation - International Science and Innovation",Foreign and Commonwealth Office (FCO),333390,310.91,NEWTON FUND - South Africa and wider Africa-Current Grants To Private Sector - NPISH,MK10 1PX,WGA ONLY
"Department for Business, Energy and Industrial Strategy","Department for Business, Energy and Industrial Strategy",10/03/2020,R & D Current Grants to Private Sector - NPISH,"Industrial Strategy, Science and Innovation - International Science and Innovation",Foreign and Commonwealth Office (FCO),333391,816.59,NEWTON FUND - Egypt-R & D Current Grants to Private Sector - NPISH,MK10 1PX,WGA ONLY
"Department for Business, Energy and Industrial Strategy","Department for Business, Energy and Industrial Strategy",10/03/2020,R & D Current Grants to Private Sector - NPISH,"Industrial Strategy, Science and Innovation - International Science and Innovation",Foreign and Commonwealth Office (FCO),333392,1467.8,NEWTON FUND - Egypt-R & D Current Grants to Private Sector - NPISH,MK10 1PX,WGA ONLY
"Department for Business, Energy and Industrial Strategy","Department for Business, Energy and Industrial Strategy",10/03/2020,R & D Current Grants to Central Government,"Industrial Strategy, Science and Innovation - International Science and Innovation",Foreign and Commonwealth Office (FCO),333393,3015.28,NEWTON FUND - India-R & D Current Grants to Central Government,MK10 1PX,WGA ONLY
"Department for Business, Energy and Industrial Strategy","Department for Business, Energy and Industrial Strategy",10/03/2020,R & D Current Grants to Central Government,"Industrial Strategy, Science and Innovation - International Science and Innovation",Foreign and Commonwealth Office (FCO),333394,4214.84,Newton Fund - Jordan-R & D Current Grants to Central Government,MK10 1PX,WGA ONLY
"Department for Business, Energy and Industrial Strategy","Department for Business, Energy and Industrial Strategy",10/03/2020,R & D Current Grants to Central Government,"Industrial Strategy, Science and Innovation - International Science and Innovation",Foreign and Commonwealth Office (FCO),333395,893.52,Newton Fund - Kenya-R & D Current Grants to Central Government,MK10 1PX,WGA ONLY
"Department for Business, Energy and Industrial Strategy","Department for Business, Energy and Industrial Strategy",10/03/2020,R & D Current Grants to Central Government,"Industrial Strategy, Science and Innovation - International Science and Innovation",Foreign and Commonwealth Office (FCO),333396,184.19,NEWTON FUND - India-R & D Current Grants to Central Government,MK10 1PX,WGA ONLY
"Department for Business, Energy and Industrial Strategy","Department for Business, Energy and Industrial Strategy",10/03/2020,R & D Current Grants to Private Sector - NPISH,"Industrial Strategy, Science and Innovation - International Science and Innovation",Foreign and Commonwealth Office (FCO),333397,3252.29,NEWTON FUND - Malaysia-R & D Current Grants to Private Sector - NPISH,MK10 1PX,WGA ONLY
"Department for Business, Energy and Industrial Strategy","Department for Business, Energy and Industrial Strategy",10/03/2020,Hotel & Accommodation Overseas,"Trade, Europe and Analysis - Economic Partnerships Directorate",Foreign and Commonwealth Office (FCO),333398,1580.52,EU Expertise: General Costs-Hotel & Accommodation Overseas,MK10 1PX,WGA ONLY
"Department for Business, Energy and Industrial Strategy","Department for Business, Energy and Industrial Strategy",10/03/2020,R & D Current Grants to Central Government,"Industrial Strategy, Science and Innovation - International Science and Innovation",Foreign and Commonwealth Office (FCO),333399,38.6,NEWTON FUND - Malaysia-R & D Current Grants to Central Government,MK10 1PX,WGA ONLY
"Department for Business, Energy and Industrial Strategy","Department for Business, Energy and Industrial Strategy",10/03/2020,R & D Current Grants to Central Government,"Industrial Strategy, Science and Innovation - International Science and Innovation",Foreign and Commonwealth Office (FCO),333400,1430.39,NEWTON FUND - Mexico-R & D Current Grants to Central Government,MK10 1PX,WGA ONLY
"Department for Business, Energy and Industrial Strategy","Department for Business, Energy and Industrial Strategy",10/03/2020,Taxi Services,"Corporate Services - Policy, Delivery and Private Office",Foreign and Commonwealth Office (FCO),333401,194.79,MF Devolved Admin-Taxi Services,MK10 1PX,WGA ONLY
"Department for Business, Energy and Industrial Strategy","Department for Business, Energy and Industrial Strategy",10/03/2020,R & D Current Grants to Private Sector - NPISH,"Industrial Strategy, Science and Innovation - International Science and Innovation",Foreign and Commonwealth Office (FCO),333402,25.87,NEWTON FUND - Mexico-R & D Current Grants to Private Sector - NPISH,MK10 1PX,WGA ONLY
"Department for Business, Energy and Industrial Strategy","Department for Business, Energy and Industrial Strategy",10/03/2020,R & D Current Grants to Central Government,"Industrial Strategy, Science and Innovation - International Science and Innovation",Foreign and Commonwealth Office (FCO),333403,25.32,Newton Fund - Peru-R & D Current Grants to Central Government,MK10 1PX,WGA ONLY
"Department for Business, Energy and Industrial Strategy","Department for Business, Energy and Industrial Strategy",10/03/2020,R & D Current Grants to Central Government,"Industrial Strategy, Science and Innovation - International Science and Innovation",Foreign and Commonwealth Office (FCO),333404,101.29,Newton Fund - Peru-R & D Current Grants to Central Government,MK10 1PX,WGA ONLY
"Department for Business, Energy and Industrial Strategy","Department for Business, Energy and Industrial Strategy",10/03/2020,Current Grants To Private Sector - NPISH,"Industrial Strategy, Science and Innovation - International Science and Innovation",Foreign and Commonwealth Office (FCO),333405,2720.8,NEWTON FUND - South Africa and wider Africa-Current Grants To Private Sector - NPISH,MK10 1PX,WGA ONLY
"Department for Business, Energy and Industrial Strategy","Department for Business, Energy and Industrial Strategy",10/03/2020,R & D Current Grants to Central Government,"Industrial Strategy, Science and Innovation - International Science and Innovation",Foreign and Commonwealth Office (FCO),333406,419.64,Newton Fund - Singapore-R & D Current Grants to Central Government,MK10 1PX,WGA ONLY
"Department for Business, Energy and Industrial Strategy","Department for Business, Energy and Industrial Strategy",10/03/2020,R & D Current Grants to Private Sector - NPISH,"Industrial Strategy, Science and Innovation - International Science and Innovation",Foreign and Commonwealth Office (FCO),333407,2465.22,Newton Fund - Singapore-R & D Current Grants to Private Sector - NPISH,MK10 1PX,WGA ONLY
"Department for Business, Energy and Industrial Strategy","Department for Business, Energy and Industrial Strategy",10/03/2020,R & D Current Grants to Central Government,"Industrial Strategy, Science and Innovation - International Science and Innovation",Foreign and Commonwealth Office (FCO),333408,99.94,NEWTON FUND - Egypt-R & D Current Grants to Central Government,MK10 1PX,WGA ONLY
"Department for Business, Energy and Industrial Strategy","Department for Business, Energy and Industrial Strategy",10/03/2020,R & D Current Grants to Central Government,"Industrial Strategy, Science and Innovation - International Science and Innovation",Foreign and Commonwealth Office (FCO),333409,99.94,NEWTON FUND - Egypt-R & D Current Grants to Central Government,MK10 1PX,WGA ONLY
"Department for Business, Energy and Industrial Strategy","Department for Business, Energy and Industrial Strategy",10/03/2020,R & D Current Grants to Central Government,"Industrial Strategy, Science and Innovation - International Science and Innovation",Foreign and Commonwealth Office (FCO),333411,368.89,Newton Fund - Jordan-R & D Current Grants to Central Government,MK10 1PX,WGA ONLY
"Department for Business, Energy and Industrial Strategy","Department for Business, Energy and Industrial Strategy",10/03/2020,Current Grants To Private Sector - NPISH,"Industrial Strategy, Science and Innovation - International Science and Innovation",Foreign and Commonwealth Office (FCO),333412,781.9,NEWTON FUND - South Africa and wider Africa-Current Grants To Private Sector - NPISH,MK10 1PX,WGA ONLY
"Department for Business, Energy and Industrial Strategy","Department for Business, Energy and Industrial Strategy",10/03/2020,R & D Current Grants to Central Government,"Industrial Strategy, Science and Innovation - International Science and Innovation",Foreign and Commonwealth Office (FCO),333413,357.5,NEWTON FUND - Turkey-R & D Current Grants to Central Government,MK10 1PX,WGA ONLY
"Department for Business, Energy and Industrial Strategy","Department for Business, Energy and Industrial Strategy",10/03/2020,R & D Current Grants to Central Government,"Industrial Strategy, Science and Innovation - International Science and Innovation",Foreign and Commonwealth Office (FCO),333414,430.92,NEWTON FUND - Turkey-R & D Current Grants to Central Government,MK10 1PX,WGA ONLY
"Department for Business, Energy and Industrial Strategy","Department for Business, Energy and Industrial Strategy",10/03/2020,R & D Current Grants to Central Government,"Industrial Strategy, Science and Innovation - International Science and Innovation",Foreign and Commonwealth Office (FCO),333415,171.18,NEWTON FUND - Egypt-R & D Current Grants to Central Government,MK10 1PX,WGA ONLY
"Department for Business, Energy and Industrial Strategy","Department for Business, Energy and Industrial Strategy",10/03/2020,R & D Current Grants to Central Government,"Industrial Strategy, Science and Innovation - International Science and Innovation",Foreign and Commonwealth Office (FCO),333416,368.74,NEWTON FUND - Egypt-R & D Current Grants to Central Government,MK10 1PX,WGA ONLY
"Department for Business, Energy and Industrial Strategy","Department for Business, Energy and Industrial Strategy",10/03/2020,R & D Current Grants to Private Sector - NPISH,"Industrial Strategy, Science and Innovation - International Science and Innovation",Foreign and Commonwealth Office (FCO),333417,475.29,NEWTON FUND - Thailand-R & D Current Grants to Private Sector - NPISH,MK10 1PX,WGA ONLY
"Department for Business, Energy and Industrial Strategy","Department for Business, Energy and Industrial Strategy",10/03/2020,R & D Current Grants to Private Sector - NPISH,"Industrial Strategy, Science and Innovation - International Science and Innovation",Foreign and Commonwealth Office (FCO),333418,2569.55,NEWTON FUND - Thailand-R & D Current Grants to Private Sector - NPISH,MK10 1PX,WGA ONLY
"Department for Business, Energy and Industrial Strategy","Department for Business, Energy and Industrial Strategy",10/03/2020,Business Rates,"Trade, Europe and Analysis - Economic Partnerships Directorate",Foreign and Commonwealth Office (FCO),333419,1604.18,EU Exit Core BEIS Staff: EU Exit Programme ADM-Business Rates,MK10 1PX,WGA ONLY
"Department for Business, Energy and Industrial Strategy","Department for Business, Energy and Industrial Strategy",10/03/2020,R & D Current Grants to Private Sector - NPISH,"Industrial Strategy, Science and Innovation - International Science and Innovation",Foreign and Commonwealth Office (FCO),333420,58.4,NEWTON FUND - ICT Technology-R & D Current Grants to Private Sector - NPISH,MK10 1PX,WGA ONLY
"Department for Business, Energy and Industrial Strategy","Department for Business, Energy and Industrial Strategy",10/03/2020,R & D Current Grants to Private Sector - NPISH,"Industrial Strategy, Science and Innovation - International Science and Innovation",Foreign and Commonwealth Office (FCO),333421,23.57,NEWTON FUND - ICT Technology-R & D Current Grants to Private Sector - NPISH,MK10 1PX,WGA ONLY
"Department for Business, Energy and Industrial Strategy","Department for Business, Energy and Industrial Strategy",10/03/2020,R & D Corporate Event Management and Marketing,"Industrial Strategy, Science and Innovation - International Science and Innovation",Foreign and Commonwealth Office (FCO),333430,-6.93,NEWTON FUND - Regional conferences/Other Activities-R & D Corporate Event Management and Marketing,MK10 1PX,WGA ONLY
"Department for Business, Energy and Industrial Strategy","Department for Business, Energy and Industrial Strategy",10/03/2020,R & D Current Grants to Central Government,"Industrial Strategy, Science and Innovation - International Science and Innovation",Foreign and Commonwealth Office (FCO),333431,-3.27,NEWTON FUND - Brazil-R & D Current Grants to Central Government,MK10 1PX,WGA ONLY
"Department for Business, Energy and Industrial Strategy","Department for Business, Energy and Industrial Strategy",10/03/2020,R & D Current Grants to Central Government,"Industrial Strategy, Science and Innovation - International Science and Innovation",Foreign and Commonwealth Office (FCO),333432,-2.95,NEWTON FUND - Brazil-R & D Current Grants to Central Government,MK10 1PX,WGA ONLY
"Department for Business, Energy and Industrial Strategy","Department for Business, Energy and Industrial Strategy",10/03/2020,R & D Current Grants to Central Government,"Industrial Strategy, Science and Innovation - International Science and Innovation",Foreign and Commonwealth Office (FCO),333433,-1.39,NEWTON FUND - Brazil-R & D Current Grants to Central Government,MK10 1PX,WGA ONLY
"Department for Business, Energy and Industrial Strategy","Department for Business, Energy and Industrial Strategy",10/03/2020,R & D Current Grants to Central Government,"Industrial Strategy, Science and Innovation - International Science and Innovation",Foreign and Commonwealth Office (FCO),333434,-1.32,NEWTON FUND - Brazil-R & D Current Grants to Central Government,MK10 1PX,WGA ONLY
"Department for Business, Energy and Industrial Strategy","Department for Business, Energy and Industrial Strategy",10/03/2020,Business Rates,"Trade, Europe and Analysis - Economic Partnerships Directorate",Foreign and Commonwealth Office (FCO),333435,-109.09,EU Exit Core BEIS Staff: EU Exit Programme ADM-Business Rates,MK10 1PX,WGA ONLY
"Department for Business, Energy and Industrial Strategy","Department for Business, Energy and Industrial Strategy",12/03/2020,R & D Current Grants to Central Government,"Industrial Strategy, Science and Innovation - International Science and Innovation",Foreign and Commonwealth Office (FCO),333448,26.5,NEWTON FUND - Turkey-R & D Current Grants to Central Government,MK10 1PX,WGA ONLY
"Department for Business, Energy and Industrial Strategy","Department for Business, Energy and Industrial Strategy",12/03/2020,R & D Current Grants to Central Government,"Industrial Strategy, Science and Innovation - International Science and Innovation",Foreign and Commonwealth Office (FCO),333449,73.61,NEWTON FUND - Turkey-R & D Current Grants to Central Government,MK10 1PX,WGA ONLY
"Department for Business, Energy and Industrial Strategy","Department for Business, Energy and Industrial Strategy",12/03/2020,R & D Current Grants to Central Government,"Industrial Strategy, Science and Innovation - International Science and Innovation",Foreign and Commonwealth Office (FCO),333450,5.13,NEWTON FUND - Turkey-R & D Current Grants to Central Government,MK10 1PX,WGA ONLY
"Department for Business, Energy and Industrial Strategy","Department for Business, Energy and Industrial Strategy",12/03/2020,R & D Current Grants to Central Government,"Industrial Strategy, Science and Innovation - International Science and Innovation",Foreign and Commonwealth Office (FCO),333451,6.42,NEWTON FUND - Turkey-R & D Current Grants to Central Government,MK10 1PX,WGA ONLY
"Department for Business, Energy and Industrial Strategy","Department for Business, Energy and Industrial Strategy",12/03/2020,R & D Current Grants to Central Government,"Industrial Strategy, Science and Innovation - International Science and Innovation",Foreign and Commonwealth Office (FCO),333452,7.38,NEWTON FUND - Turkey-R & D Current Grants to Central Government,MK10 1PX,WGA ONLY
"Department for Business, Energy and Industrial Strategy","Department for Business, Energy and Industrial Strategy",12/03/2020,R & D Current Grants to Central Government,"Industrial Strategy, Science and Innovation - International Science and Innovation",Foreign and Commonwealth Office (FCO),333453,15.31,NEWTON FUND - Turkey-R & D Current Grants to Central Government,MK10 1PX,WGA ONLY
"Department for Business, Energy and Industrial Strategy","Department for Business, Energy and Industrial Strategy",12/03/2020,R & D Current Grants to Central Government,"Industrial Strategy, Science and Innovation - International Science and Innovation",Foreign and Commonwealth Office (FCO),333454,37.63,Newton Fund - Peru-R & D Current Grants to Central Government,MK10 1PX,WGA ONLY
"Department for Business, Energy and Industrial Strategy","Department for Business, Energy and Industrial Strategy",12/03/2020,R & D Current Grants to Private Sector - NPISH,"Industrial Strategy, Science and Innovation - International Science and Innovation",Foreign and Commonwealth Office (FCO),333455,867.7,Newton Fund Prize-R & D Current Grants to Private Sector - NPISH,MK10 1PX,WGA ONLY
"Department for Business, Energy and Industrial Strategy","Department for Business, Energy and Industrial Strategy",12/03/2020,R & D Corporate Event Management and Marketing,"Industrial Strategy, Science and Innovation - International Science and Innovation",Foreign and Commonwealth Office (FCO),333456,1247.81,NEWTON FUND - Regional conferences/Other Activities-R & D Corporate Event Management and Marketing,MK10 1PX,WGA ONLY
"Department for Business, Energy and Industrial Strategy","Department for Business, Energy and Industrial Strategy",12/03/2020,R & D Current Grants to Private Sector - NPISH,"Industrial Strategy, Science and Innovation - International Science and Innovation",Foreign and Commonwealth Office (FCO),333457,1779.59,Newton Fund Prize-R & D Current Grants to Private Sector - NPISH,MK10 1PX,WGA ONLY
"Department for Business, Energy and Industrial Strategy","Department for Business, Energy and Industrial Strategy",12/03/2020,R & D Corporate Event Management and Marketing,"Industrial Strategy, Science and Innovation - International Science and Innovation",Foreign and Commonwealth Office (FCO),333458,1902.17,NEWTON FUND - Regional conferences/Other Activities-R & D Corporate Event Management and Marketing,MK10 1PX,WGA ONLY
"Department for Business, Energy and Industrial Strategy","Department for Business, Energy and Industrial Strategy",12/03/2020,R & D Corporate Event Management and Marketing,"Industrial Strategy, Science and Innovation - International Science and Innovation",Foreign and Commonwealth Office (FCO),333459,-36.41,NEWTON FUND - Regional conferences/Other Activities-R & D Corporate Event Management and Marketing,MK10 1PX,WGA ONLY
"Department for Business, Energy and Industrial Strategy","Department for Business, Energy and Industrial Strategy",12/03/2020,R & D Corporate Event Management and Marketing,"Industrial Strategy, Science and Innovation - International Science and Innovation",Foreign and Commonwealth Office (FCO),333459,72.82,NEWTON FUND - Regional conferences/Other Activities-R & D Corporate Event Management and Marketing,MK10 1PX,WGA ONLY
"Department for Business, Energy and Industrial Strategy","Department for Business, Energy and Industrial Strategy",12/03/2020,R & D Corporate Event Management and Marketing,"Industrial Strategy, Science and Innovation - International Science and Innovation",Foreign and Commonwealth Office (FCO),333460,53.42,NEWTON FUND - Regional conferences/Other Activities-R & D Corporate Event Management and Marketing,MK10 1PX,WGA ONLY
"Department for Business, Energy and Industrial Strategy","Department for Business, Energy and Industrial Strategy",12/03/2020,R & D Corporate Event Management and Marketing,"Industrial Strategy, Science and Innovation - International Science and Innovation",Foreign and Commonwealth Office (FCO),333461,128,NEWTON FUND - Regional conferences/Other Activities-R & D Corporate Event Management and Marketing,MK10 1PX,WGA ONLY
"Department for Business, Energy and Industrial Strategy","Department for Business, Energy and Industrial Strategy",12/03/2020,R & D Corporate Event Management and Marketing,"Industrial Strategy, Science and Innovation - International Science and Innovation",Foreign and Commonwealth Office (FCO),333462,144,NEWTON FUND - Regional conferences/Other Activities-R & D Corporate Event Management and Marketing,MK10 1PX,WGA ONLY
"Department for Business, Energy and Industrial Strategy","Department for Business, Energy and Industrial Strategy",12/03/2020,R & D Corporate Event Management and Marketing,"Industrial Strategy, Science and Innovation - International Science and Innovation",Foreign and Commonwealth Office (FCO),333463,886.54,NEWTON FUND - Regional conferences/Other Activities-R & D Corporate Event Management and Marketing,MK10 1PX,WGA ONLY
"Department for Business, Energy and Industrial Strategy","Department for Business, Energy and Industrial Strategy",12/03/2020,R & D Current Grants to Central Government,"Industrial Strategy, Science and Innovation - International Science and Innovation",Foreign and Commonwealth Office (FCO),333464,2.3,Newton Fund - Peru-R & D Current Grants to Central Government,MK10 1PX,WGA ONLY
"Department for Business, Energy and Industrial Strategy","Department for Business, Energy and Industrial Strategy",12/03/2020,R & D Current Grants to Central Government,"Industrial Strategy, Science and Innovation - International Science and Innovation",Foreign and Commonwealth Office (FCO),333465,2.3,Newton Fund - Peru-R & D Current Grants to Central Government,MK10 1PX,WGA ONLY
"Department for Business, Energy and Industrial Strategy","Department for Business, Energy and Industrial Strategy",12/03/2020,R & D Current Grants to Central Government,"Industrial Strategy, Science and Innovation - International Science and Innovation",Foreign and Commonwealth Office (FCO),333466,2.76,Newton Fund - Peru-R & D Current Grants to Central Government,MK10 1PX,WGA ONLY
"Department for Business, Energy and Industrial Strategy","Department for Business, Energy and Industrial Strategy",12/03/2020,R & D Corporate Event Management and Marketing,"Industrial Strategy, Science and Innovation - International Science and Innovation",Foreign and Commonwealth Office (FCO),333467,233.1,NEWTON FUND - Regional conferences/Other Activities-R & D Corporate Event Management and Marketing,MK10 1PX,WGA ONLY
"Department for Business, Energy and Industrial Strategy","Department for Business, Energy and Industrial Strategy",12/03/2020,R & D Corporate Event Management and Marketing,"Industrial Strategy, Science and Innovation - International Science and Innovation",Foreign and Commonwealth Office (FCO),333468,233.1,NEWTON FUND - Regional conferences/Other Activities-R & D Corporate Event Management and Marketing,MK10 1PX,WGA ONLY
"Department for Business, Energy and Industrial Strategy","Department for Business, Energy and Industrial Strategy",12/03/2020,R & D Current Grants to Central Government,"Industrial Strategy, Science and Innovation - International Science and Innovation",Foreign and Commonwealth Office (FCO),333469,1.38,NEWTON FUND - South Africa and wider Africa-R & D Current Grants to Central Government,MK10 1PX,WGA ONLY
"Department for Business, Energy and Industrial Strategy","Department for Business, Energy and Industrial Strategy",12/03/2020,R & D Current Grants to Central Government,"Industrial Strategy, Science and Innovation - International Science and Innovation",Foreign and Commonwealth Office (FCO),333470,1.38,NEWTON FUND - South Africa and wider Africa-R & D Current Grants to Central Government,MK10 1PX,WGA ONLY
"Department for Business, Energy and Industrial Strategy","Department for Business, Energy and Industrial Strategy",12/03/2020,R & D Current Grants to Central Government,"Industrial Strategy, Science and Innovation - International Science and Innovation",Foreign and Commonwealth Office (FCO),333471,8.4,NEWTON FUND - South Africa and wider Africa-R & D Current Grants to Central Government,MK10 1PX,WGA ONLY
"Department for Business, Energy and Industrial Strategy","Department for Business, Energy and Industrial Strategy",12/03/2020,R & D Current Grants to Central Government,"Industrial Strategy, Science and Innovation - International Science and Innovation",Foreign and Commonwealth Office (FCO),333472,3.19,NEWTON FUND - Brazil-R & D Current Grants to Central Government,MK10 1PX,WGA ONLY
"Department for Business, Energy and Industrial Strategy","Department for Business, Energy and Industrial Strategy",12/03/2020,R & D Current Grants to Central Government,"Industrial Strategy, Science and Innovation - International Science and Innovation",Foreign and Commonwealth Office (FCO),333473,3.27,NEWTON FUND - Brazil-R & D Current Grants to Central Government,MK10 1PX,WGA ONLY
"Department for Business, Energy and Industrial Strategy","Department for Business, Energy and Industrial Strategy",12/03/2020,R & D Current Grants to Central Government,"Industrial Strategy, Science and Innovation - International Science and Innovation",Foreign and Commonwealth Office (FCO),333474,4.26,NEWTON FUND - Brazil-R & D Current Grants to Central Government,MK10 1PX,WGA ONLY
"Department for Business, Energy and Industrial Strategy","Department for Business, Energy and Industrial Strategy",12/03/2020,R & D Current Grants to Central Government,"Industrial Strategy, Science and Innovation - International Science and Innovation",Foreign and Commonwealth Office (FCO),333475,4.66,NEWTON FUND - Brazil-R & D Current Grants to Central Government,MK10 1PX,WGA ONLY
"Department for Business, Energy and Industrial Strategy","Department for Business, Energy and Industrial Strategy",12/03/2020,R & D Corporate Event Management and Marketing,"Industrial Strategy, Science and Innovation - International Science and Innovation",Foreign and Commonwealth Office (FCO),333476,-51.75,NEWTON FUND - Regional conferences/Other Activities-R & D Corporate Event Management and Marketing,MK10 1PX,WGA ONLY
"Department for Business, Energy and Industrial Strategy","Department for Business, Energy and Industrial Strategy",12/03/2020,R & D Corporate Event Management and Marketing,"Industrial Strategy, Science and Innovation - International Science and Innovation",Foreign and Commonwealth Office (FCO),333476,103.5,NEWTON FUND - Regional conferences/Other Activities-R & D Corporate Event Management and Marketing,MK10 1PX,WGA ONLY
"Department for Business, Energy and Industrial Strategy","Department for Business, Energy and Industrial Strategy",12/03/2020,R & D Current Grants to Central Government,"Industrial Strategy, Science and Innovation - International Science and Innovation",Foreign and Commonwealth Office (FCO),333477,8.8,NEWTON FUND - Egypt-R & D Current Grants to Central Government,MK10 1PX,WGA ONLY
"Department for Business, Energy and Industrial Strategy","Department for Business, Energy and Industrial Strategy",12/03/2020,R & D Current Grants to Central Government,"Industrial Strategy, Science and Innovation - International Science and Innovation",Foreign and Commonwealth Office (FCO),333478,150.57,NEWTON FUND - Philippines-R & D Current Grants to Central Government,MK10 1PX,WGA ONLY
"Department for Business, Energy and Industrial Strategy","Department for Business, Energy and Industrial Strategy",12/03/2020,R & D Current Grants to Central Government,"Industrial Strategy, Science and Innovation - International Science and Innovation",Foreign and Commonwealth Office (FCO),333479,100.6,NEWTON FUND - Philippines-R & D Current Grants to Central Government,MK10 1PX,WGA ONLY
"Department for Business, Energy and Industrial Strategy","Department for Business, Energy and Industrial Strategy",12/03/2020,R & D Current Grants to Central Government,"Industrial Strategy, Science and Innovation - International Science and Innovation",Foreign and Commonwealth Office (FCO),333480,15.47,Newton Fund - Peru-R & D Current Grants to Central Government,MK10 1PX,WGA ONLY
"Department for Business, Energy and Industrial Strategy","Department for Business, Energy and Industrial Strategy",12/03/2020,R & D Corporate Event Management and Marketing,"Industrial Strategy, Science and Innovation - International Science and Innovation",Foreign and Commonwealth Office (FCO),333481,1057.66,NEWTON FUND - Regional conferences/Other Activities-R & D Corporate Event Management and Marketing,MK10 1PX,WGA ONLY
"Department for Business, Energy and Industrial Strategy","Department for Business, Energy and Industrial Strategy",12/03/2020,R & D Corporate Event Management and Marketing,"Industrial Strategy, Science and Innovation - International Science and Innovation",Foreign and Commonwealth Office (FCO),333482,1897.56,NEWTON FUND - Regional conferences/Other Activities-R & D Corporate Event Management and Marketing,MK10 1PX,WGA ONLY
"Department for Business, Energy and Industrial Strategy","Department for Business, Energy and Industrial Strategy",12/03/2020,R & D Corporate Event Management and Marketing,"Industrial Strategy, Science and Innovation - International Science and Innovation",Foreign and Commonwealth Office (FCO),333483,99.48,NEWTON FUND - Regional conferences/Other Activities-R & D Corporate Event Management and Marketing,MK10 1PX,WGA ONLY
"Department for Business, Energy and Industrial Strategy","Department for Business, Energy and Industrial Strategy",12/03/2020,R & D Corporate Event Management and Marketing,"Industrial Strategy, Science and Innovation - International Science and Innovation",Foreign and Commonwealth Office (FCO),333484,150.45,NEWTON FUND - Regional conferences/Other Activities-R & D Corporate Event Management and Marketing,MK10 1PX,WGA ONLY
"Department for Business, Energy and Industrial Strategy","Department for Business, Energy and Industrial Strategy",12/03/2020,R & D Corporate Event Management and Marketing,"Industrial Strategy, Science and Innovation - International Science and Innovation",Foreign and Commonwealth Office (FCO),333485,150.45,NEWTON FUND - Regional conferences/Other Activities-R & D Corporate Event Management and Marketing,MK10 1PX,WGA ONLY
"Department for Business, Energy and Industrial Strategy","Department for Business, Energy and Industrial Strategy",12/03/2020,R & D Current Grants to Central Government,"Industrial Strategy, Science and Innovation - International Science and Innovation",Foreign and Commonwealth Office (FCO),333486,1.08,NEWTON FUND - India-R & D Current Grants to Central Government,MK10 1PX,WGA ONLY
"Department for Business, Energy and Industrial Strategy","Department for Business, Energy and Industrial Strategy",12/03/2020,R & D Current Grants to Central Government,"Industrial Strategy, Science and Innovation - International Science and Innovation",Foreign and Commonwealth Office (FCO),333487,1.86,NEWTON FUND - India-R & D Current Grants to Central Government,MK10 1PX,WGA ONLY
"Department for Business, Energy and Industrial Strategy","Department for Business, Energy and Industrial Strategy",12/03/2020,R & D Current Grants to Central Government,"Industrial Strategy, Science and Innovation - International Science and Innovation",Foreign and Commonwealth Office (FCO),333488,2.69,NEWTON FUND - India-R & D Current Grants to Central Government,MK10 1PX,WGA ONLY
"Department for Business, Energy and Industrial Strategy","Department for Business, Energy and Industrial Strategy",12/03/2020,R & D Current Grants to Central Government,"Industrial Strategy, Science and Innovation - International Science and Innovation",Foreign and Commonwealth Office (FCO),333489,23.21,NEWTON FUND - India-R & D Current Grants to Central Government,MK10 1PX,WGA ONLY
"Department for Business, Energy and Industrial Strategy","Department for Business, Energy and Industrial Strategy",12/03/2020,R & D Current Grants to Central Government,"Industrial Strategy, Science and Innovation - International Science and Innovation",Foreign and Commonwealth Office (FCO),333490,215.73,NEWTON FUND - Mexico-R & D Current Grants to Central Government,MK10 1PX,WGA ONLY
"Department for Business, Energy and Industrial Strategy","Department for Business, Energy and Industrial Strategy",12/03/2020,R & D Current Grants to Central Government,"Industrial Strategy, Science and Innovation - International Science and Innovation",Foreign and Commonwealth Office (FCO),333491,11.96,NEWTON FUND - Mexico-R & D Current Grants to Central Government,MK10 1PX,WGA ONLY
"Department for Business, Energy and Industrial Strategy","Department for Business, Energy and Industrial Strategy",12/03/2020,R & D Current Grants to Central Government,"Industrial Strategy, Science and Innovation - International Science and Innovation",Foreign and Commonwealth Office (FCO),333492,10.31,NEWTON FUND - Mexico-R & D Current Grants to Central Government,MK10 1PX,WGA ONLY
"Department for Business, Energy and Industrial Strategy","Department for Business, Energy and Industrial Strategy",12/03/2020,R & D Current Grants to Central Government,"Industrial Strategy, Science and Innovation - International Science and Innovation",Foreign and Commonwealth Office (FCO),333493,19.08,NEWTON FUND - Mexico-R & D Current Grants to Central Government,MK10 1PX,WGA ONLY
"Department for Business, Energy and Industrial Strategy","Department for Business, Energy and Industrial Strategy",12/03/2020,R & D Current Grants to Central Government,"Industrial Strategy, Science and Innovation - International Science and Innovation",Foreign and Commonwealth Office (FCO),333494,1.86,NEWTON FUND - Malaysia-R & D Current Grants to Central Government,MK10 1PX,WGA ONLY
"Department for Business, Energy and Industrial Strategy","Department for Business, Energy and Industrial Strategy",12/03/2020,R & D Current Grants to Central Government,"Industrial Strategy, Science and Innovation - International Science and Innovation",Foreign and Commonwealth Office (FCO),333495,1.86,NEWTON FUND - Malaysia-R & D Current Grants to Central Government,MK10 1PX,WGA ONLY
"Department for Business, Energy and Industrial Strategy","Department for Business, Energy and Industrial Strategy",12/03/2020,R & D Current Grants to Central Government,"Industrial Strategy, Science and Innovation - International Science and Innovation",Foreign and Commonwealth Office (FCO),333496,24.19,NEWTON FUND - Malaysia-R & D Current Grants to Central Government,MK10 1PX,WGA ONLY
"Department for Business, Energy and Industrial Strategy","Department for Business, Energy and Industrial Strategy",12/03/2020,R & D Current Grants to Central Government,"Industrial Strategy, Science and Innovation - International Science and Innovation",Foreign and Commonwealth Office (FCO),333497,24.2,NEWTON FUND - Malaysia-R & D Current Grants to Central Government,MK10 1PX,WGA ONLY
"Department for Business, Energy and Industrial Strategy","Department for Business, Energy and Industrial Strategy",12/03/2020,R & D Current Grants to Central Government,"Industrial Strategy, Science and Innovation - International Science and Innovation",Foreign and Commonwealth Office (FCO),333498,10.15,NEWTON FUND - Malaysia-R & D Current Grants to Central Government,MK10 1PX,WGA ONLY
"Department for Business, Energy and Industrial Strategy","Department for Business, Energy and Industrial Strategy",12/03/2020,R & D Corporate Event Management and Marketing,"Industrial Strategy, Science and Innovation - International Science and Innovation",Foreign and Commonwealth Office (FCO),333499,734.25,NEWTON FUND - Regional conferences/Other Activities-R & D Corporate Event Management and Marketing,MK10 1PX,WGA ONLY
"Department for Business, Energy and Industrial Strategy","Department for Business, Energy and Industrial Strategy",12/03/2020,R & D Corporate Event Management and Marketing,"Industrial Strategy, Science and Innovation - International Science and Innovation",Foreign and Commonwealth Office (FCO),333500,97.84,NEWTON FUND - Regional conferences/Other Activities-R & D Corporate Event Management and Marketing,MK10 1PX,WGA ONLY
"Department for Business, Energy and Industrial Strategy","Department for Business, Energy and Industrial Strategy",12/03/2020,R & D Corporate Event Management and Marketing,"Industrial Strategy, Science and Innovation - International Science and Innovation",Foreign and Commonwealth Office (FCO),333501,37,NEWTON FUND - Regional conferences/Other Activities-R & D Corporate Event Management and Marketing,MK10 1PX,WGA ONLY
"Department for Business, Energy and Industrial Strategy","Department for Business, Energy and Industrial Strategy",12/03/2020,R & D Corporate Event Management and Marketing,"Industrial Strategy, Science and Innovation - International Science and Innovation",Foreign and Commonwealth Office (FCO),333502,1.45,NEWTON FUND - Regional conferences/Other Activities-R & D Corporate Event Management and Marketing,MK10 1PX,WGA ONLY
"Department for Business, Energy and Industrial Strategy","Department for Business, Energy and Industrial Strategy",12/03/2020,R & D Corporate Event Management and Marketing,"Industrial Strategy, Science and Innovation - International Science and Innovation",Foreign and Commonwealth Office (FCO),333503,69.39,NEWTON FUND - Regional conferences/Other Activities-R & D Corporate Event Management and Marketing,MK10 1PX,WGA ONLY
"Department for Business, Energy and Industrial Strategy","Department for Business, Energy and Industrial Strategy",12/03/2020,R & D Corporate Event Management and Marketing,"Industrial Strategy, Science and Innovation - International Science and Innovation",Foreign and Commonwealth Office (FCO),333504,91.78,NEWTON FUND - Regional conferences/Other Activities-R & D Corporate Event Management and Marketing,MK10 1PX,WGA ONLY
"Department for Business, Energy and Industrial Strategy","Department for Business, Energy and Industrial Strategy",12/03/2020,R & D Corporate Event Management and Marketing,"Industrial Strategy, Science and Innovation - International Science and Innovation",Foreign and Commonwealth Office (FCO),333505,1146.04,NEWTON FUND - Regional conferences/Other Activities-R & D Corporate Event Management and Marketing,MK10 1PX,WGA ONLY
"Department for Business, Energy and Industrial Strategy","Department for Business, Energy and Industrial Strategy",12/03/2020,R & D Corporate Event Management and Marketing,"Industrial Strategy, Science and Innovation - International Science and Innovation",Foreign and Commonwealth Office (FCO),333506,1683.87,NEWTON FUND - Regional conferences/Other Activities-R & D Corporate Event Management and Marketing,MK10 1PX,WGA ONLY
"Department for Business, Energy and Industrial Strategy","Department for Business, Energy and Industrial Strategy",12/03/2020,R & D Current Grants to Central Government,"Industrial Strategy, Science and Innovation - International Science and Innovation",Foreign and Commonwealth Office (FCO),333507,4.56,NEWTON FUND - Egypt-R & D Current Grants to Central Government,MK10 1PX,WGA ONLY
"Department for Business, Energy and Industrial Strategy","Department for Business, Energy and Industrial Strategy",12/03/2020,R & D Current Grants to Private Sector - NPISH,"Industrial Strategy, Science and Innovation - International Science and Innovation",Foreign and Commonwealth Office (FCO),333508,1.78,NEWTON FUND - ICT Technology-R & D Current Grants to Private Sector - NPISH,MK10 1PX,WGA ONLY
"Department for Business, Energy and Industrial Strategy","Department for Business, Energy and Industrial Strategy",12/03/2020,R & D Current Grants to Central Government,"Industrial Strategy, Science and Innovation - International Science and Innovation",Foreign and Commonwealth Office (FCO),333509,5.59,NEWTON FUND - Brazil-R & D Current Grants to Central Government,MK10 1PX,WGA ONLY
"Department for Business, Energy and Industrial Strategy","Department for Business, Energy and Industrial Strategy",12/03/2020,R & D Current Grants to Central Government,"Industrial Strategy, Science and Innovation - International Science and Innovation",Foreign and Commonwealth Office (FCO),333510,5.59,NEWTON FUND - Brazil-R & D Current Grants to Central Government,MK10 1PX,WGA ONLY
"Department for Business, Energy and Industrial Strategy","Department for Business, Energy and Industrial Strategy",12/03/2020,R & D Current Grants to Central Government,"Industrial Strategy, Science and Innovation - International Science and Innovation",Foreign and Commonwealth Office (FCO),333511,152.65,NEWTON FUND - Brazil-R & D Current Grants to Central Government,MK10 1PX,WGA ONLY
"Department for Business, Energy and Industrial Strategy","Department for Business, Energy and Industrial Strategy",12/03/2020,R & D Current Grants to Central Government,"Industrial Strategy, Science and Innovation - International Science and Innovation",Foreign and Commonwealth Office (FCO),333512,511.13,NEWTON FUND - Brazil-R & D Current Grants to Central Government,MK10 1PX,WGA ONLY
"Department for Business, Energy and Industrial Strategy","Department for Business, Energy and Industrial Strategy",12/03/2020,R & D Current Grants to Central Government,"Industrial Strategy, Science and Innovation - International Science and Innovation",Foreign and Commonwealth Office (FCO),333513,193.16,NEWTON FUND - Brazil-R & D Current Grants to Central Government,MK10 1PX,WGA ONLY
"Department for Business, Energy and Industrial Strategy","Department for Business, Energy and Industrial Strategy",12/03/2020,R & D Current Grants to Central Government,"Industrial Strategy, Science and Innovation - International Science and Innovation",Foreign and Commonwealth Office (FCO),333514,614.94,NEWTON FUND - Brazil-R & D Current Grants to Central Government,MK10 1PX,WGA ONLY
"Department for Business, Energy and Industrial Strategy","Department for Business, Energy and Industrial Strategy",12/03/2020,R & D Current Grants to Central Government,"Industrial Strategy, Science and Innovation - International Science and Innovation",Foreign and Commonwealth Office (FCO),333515,7.8,Newton Fund - Peru-R & D Current Grants to Central Government,MK10 1PX,WGA ONLY
"Department for Business, Energy and Industrial Strategy","Department for Business, Energy and Industrial Strategy",12/03/2020,R & D Current Grants to Central Government,"Industrial Strategy, Science and Innovation - International Science and Innovation",Foreign and Commonwealth Office (FCO),333523,141.31,Newton Fund - Kenya-R & D Current Grants to Central Government,MK10 1PX,WGA ONLY
"Department for Business, Energy and Industrial Strategy","Department for Business, Energy and Industrial Strategy",12/03/2020,R & D Current Grants to Central Government,"Industrial Strategy, Science and Innovation - International Science and Innovation",Foreign and Commonwealth Office (FCO),333524,12.78,Newton Fund - Kenya-R & D Current Grants to Central Government,MK10 1PX,WGA ONLY
"Department for Business, Energy and Industrial Strategy","Department for Business, Energy and Industrial Strategy",12/03/2020,R & D Current Grants to Central Government,"Industrial Strategy, Science and Innovation - International Science and Innovation",Foreign and Commonwealth Office (FCO),333525,16.24,Newton Fund - Kenya-R & D Current Grants to Central Government,MK10 1PX,WGA ONLY
"Department for Business, Energy and Industrial Strategy","Department for Business, Energy and Industrial Strategy",12/03/2020,R & D Current Grants to Central Government,"Industrial Strategy, Science and Innovation - International Science and Innovation",Foreign and Commonwealth Office (FCO),333526,328.59,Newton Fund - Kenya-R & D Current Grants to Central Government,MK10 1PX,WGA ONLY
"Department for Business, Energy and Industrial Strategy","Department for Business, Energy and Industrial Strategy",12/03/2020,R & D Current Grants to Central Government,"Industrial Strategy, Science and Innovation - International Science and Innovation",Foreign and Commonwealth Office (FCO),333527,453.41,Newton Fund - Kenya-R & D Current Grants to Central Government,MK10 1PX,WGA ONLY
"Department for Business, Energy and Industrial Strategy","Department for Business, Energy and Industrial Strategy",12/03/2020,R & D Current Grants to Private Sector - NPISH,"Industrial Strategy, Science and Innovation - International Science and Innovation",Foreign and Commonwealth Office (FCO),333528,3555.56,Newton Fund Prize-R & D Current Grants to Private Sector - NPISH,MK10 1PX,WGA ONLY
"Department for Business, Energy and Industrial Strategy","Department for Business, Energy and Industrial Strategy",12/03/2020,R & D Current Grants to Central Government,"Industrial Strategy, Science and Innovation - International Science and Innovation",Foreign and Commonwealth Office (FCO),333529,393.09,NEWTON FUND - Philippines-R & D Current Grants to Central Government,MK10 1PX,WGA ONLY
"Department for Business, Energy and Industrial Strategy","Department for Business, Energy and Industrial Strategy",12/03/2020,R & D Current Grants to Private Sector - NPISH,"Industrial Strategy, Science and Innovation - International Science and Innovation",Foreign and Commonwealth Office (FCO),333530,652.46,NEWTON FUND - Philippines-R & D Current Grants to Private Sector - NPISH,MK10 1PX,WGA ONLY
"Department for Business, Energy and Industrial Strategy","Department for Business, Energy and Industrial Strategy",12/03/2020,R & D Current Grants to Central Government,"Industrial Strategy, Science and Innovation - International Science and Innovation",Foreign and Commonwealth Office (FCO),333531,72.3,NEWTON FUND - Indonesia-R & D Current Grants to Central Government,MK10 1PX,WGA ONLY
"Department for Business, Energy and Industrial Strategy","Department for Business, Energy and Industrial Strategy",12/03/2020,R & D Current Grants to Central Government,"Industrial Strategy, Science and Innovation - International Science and Innovation",Foreign and Commonwealth Office (FCO),333532,22.58,Newton Fund - Peru-R & D Current Grants to Central Government,MK10 1PX,WGA ONLY
"Department for Business, Energy and Industrial Strategy","Department for Business, Energy and Industrial Strategy",12/03/2020,R & D Current Grants to Central Government,"Industrial Strategy, Science and Innovation - International Science and Innovation",Foreign and Commonwealth Office (FCO),333533,2.66,NEWTON FUND - Brazil-R & D Current Grants to Central Government,MK10 1PX,WGA ONLY
"Department for Business, Energy and Industrial Strategy","Department for Business, Energy and Industrial Strategy",12/03/2020,R & D Current Grants to Central Government,"Industrial Strategy, Science and Innovation - International Science and Innovation",Foreign and Commonwealth Office (FCO),333534,2.66,NEWTON FUND - Brazil-R & D Current Grants to Central Government,MK10 1PX,WGA ONLY
"Department for Business, Energy and Industrial Strategy","Department for Business, Energy and Industrial Strategy",12/03/2020,R & D Current Grants to Central Government,"Industrial Strategy, Science and Innovation - International Science and Innovation",Foreign and Commonwealth Office (FCO),333535,4980.82,NEWTON FUND - Egypt-R & D Current Grants to Central Government,MK10 1PX,WGA ONLY
"Department for Business, Energy and Industrial Strategy","Department for Business, Energy and Industrial Strategy",12/03/2020,R & D Current Grants to Central Government,"Industrial Strategy, Science and Innovation - International Science and Innovation",Foreign and Commonwealth Office (FCO),333536,2057.72,NEWTON FUND - Turkey-R & D Current Grants to Central Government,MK10 1PX,WGA ONLY
"Department for Business, Energy and Industrial Strategy","Department for Business, Energy and Industrial Strategy",12/03/2020,R & D Current Grants to Central Government,"Industrial Strategy, Science and Innovation - International Science and Innovation",Foreign and Commonwealth Office (FCO),333537,2510.83,NEWTON FUND - Turkey-R & D Current Grants to Central Government,MK10 1PX,WGA ONLY
"Department for Business, Energy and Industrial Strategy","Department for Business, Energy and Industrial Strategy",12/03/2020,R & D Corporate Event Management and Marketing,"Industrial Strategy, Science and Innovation - International Science and Innovation",Foreign and Commonwealth Office (FCO),333538,-51.75,NEWTON FUND - Regional conferences/Other Activities-R & D Corporate Event Management and Marketing,MK10 1PX,WGA ONLY
"Department for Business, Energy and Industrial Strategy","Department for Business, Energy and Industrial Strategy",12/03/2020,R & D Corporate Event Management and Marketing,"Industrial Strategy, Science and Innovation - International Science and Innovation",Foreign and Commonwealth Office (FCO),333539,-1.39,NEWTON FUND - Regional conferences/Other Activities-R & D Corporate Event Management and Marketing,MK10 1PX,WGA ONLY
"Department for Business, Energy and Industrial Strategy","Department for Business, Energy and Industrial Strategy",12/03/2020,R & D Current Grants to Central Government,"Industrial Strategy, Science and Innovation - International Science and Innovation",Foreign and Commonwealth Office (FCO),333540,-1617.96,NEWTON FUND - Brazil-R & D Current Grants to Central Government,MK10 1PX,WGA ONLY
"Department for Business, Energy and Industrial Strategy","Department for Business, Energy and Industrial Strategy",03/03/2020,Central Telecommunications Services,"Corporate Services - Digital, Data & Technology",DAISY COMMUNICATIONS LTD,333550,48.88,MF Devolved Admin-Central Telecommunications Services,BB9 5SR,VENDOR
"Department for Business, Energy and Industrial Strategy","Department for Business, Energy and Industrial Strategy",12/03/2020,R & D Current Grants to Private Sector - NPISH,"Industrial Strategy, Science and Innovation - International Science and Innovation",Foreign and Commonwealth Office (FCO),333717,-960.99,NEWTON FUND - India-R & D Current Grants to Private Sector - NPISH,MK10 1PX,WGA ONLY
"Department for Business, Energy and Industrial Strategy","Department for Business, Energy and Industrial Strategy",12/03/2020,R & D Current Grants to Private Sector - NPISH,"Industrial Strategy, Science and Innovation - International Science and Innovation",Foreign and Commonwealth Office (FCO),333718,-960.99,NEWTON FUND - India-R & D Current Grants to Private Sector - NPISH,MK10 1PX,WGA ONLY
"Department for Business, Energy and Industrial Strategy","Department for Business, Energy and Industrial Strategy",12/03/2020,R & D Current Grants to Private Sector - NPISH,"Industrial Strategy, Science and Innovation - International Science and Innovation",Foreign and Commonwealth Office (FCO),333719,-4804.94,NEWTON FUND - India-R & D Current Grants to Private Sector - NPISH,MK10 1PX,WGA ONLY
"Department for Business, Energy and Industrial Strategy","Department for Business, Energy and Industrial Strategy",25/03/2020,Capital Grants to Private Sector - Companies,Energy Transformation and Clean Growth - Science and Innovation,Q-BOT LTD,333901,-130924.09,Innovation Delivery Built Environment-Capital Grants to Private Sector - Companies,SW18 4UQ,VENDOR
"Department for Business, Energy and Industrial Strategy","Department for Business, Energy and Industrial Strategy",02/03/2020,International Subscriptions,Energy Transformation and Clean Growth - Science and Innovation,BUILDING RESEARCH ESTABLISHMENT LTD (BRE),333967,8516.26,Non R and D Expenditure-International Subscriptions,WD25 9XX,VENDOR
"Department for Business, Energy and Industrial Strategy","Department for Business, Energy and Industrial Strategy",02/03/2020,R & D Research and Development Expenditure,Energy Transformation and Clean Growth - Science and Innovation,ENVIRONMENT AGENCY,333990,349952.9,Innovation Delivery Nuclear Research and Development-R & D Research and Development Expenditure,BS32 4UD,WGA ONLY
"Department for Business, Energy and Industrial Strategy","Department for Business, Energy and Industrial Strategy",11/03/2020,Purchase of Intangible Software,"Corporate Services - Digital, Data & Technology",SOFTWARE BOX LTD,334201,3418.46,MF Devolved Admin-Purchase of Intangible Software,YO61 1ET,VENDOR
"Department for Business, Energy and Industrial Strategy","Department for Business, Energy and Industrial Strategy",02/03/2020,Purchase of Intangible Software,"Corporate Services - Digital, Data & Technology",SPECIALIST COMPUTER CENTRES (SSC),334371,1001.82,MF Devolved Admin-Purchase of Intangible Software,B11 2LE,VENDOR
"Department for Business, Energy and Industrial Strategy","Department for Business, Energy and Industrial Strategy",02/03/2020,Purchase of Intangible Software,"Corporate Services - Digital, Data & Technology",SPECIALIST COMPUTER CENTRES (SSC),334390,1535.28,MF Devolved Admin-Purchase of Intangible Software,B11 2LE,VENDOR
"Department for Business, Energy and Industrial Strategy","Department for Business, Energy and Industrial Strategy",03/03/2020,Other Goods/Services,Energy Transformation and Clean Growth - Science and Innovation,RICARDO-AEA LTD,334458,-541168.2,National Mitigation Analysis and Evidence Base-Other Goods/Services,OX11 0QR,VENDOR
"Department for Business, Energy and Industrial Strategy","Department for Business, Energy and Industrial Strategy",03/03/2020,Other Goods/Services,Energy Transformation and Clean Growth - Science and Innovation,RICARDO-AEA LTD,334458,644462.1,National Mitigation Analysis and Evidence Base-Other Goods/Services,OX11 0QR,VENDOR
"Department for Business, Energy and Industrial Strategy","Department for Business, Energy and Industrial Strategy",30/03/2020,R & D Corporate Event Management and Marketing,"Industrial Strategy, Science and Innovation - International Science and Innovation",Foreign and Commonwealth Office (FCO),334460,1677.71,NEWTON FUND - Regional conferences/Other Activities-R & D Corporate Event Management and Marketing,MK10 1PX,WGA ONLY
"Department for Business, Energy and Industrial Strategy","Department for Business, Energy and Industrial Strategy",11/03/2020,R & D Current Grants to Central Government,"Industrial Strategy, Science and Innovation - International Science and Innovation",Foreign and Commonwealth Office (FCO),334463,403.07,NEWTON FUND - Colombia-R & D Current Grants to Central Government,MK10 1PX,WGA ONLY
"Department for Business, Energy and Industrial Strategy","Department for Business, Energy and Industrial Strategy",20/03/2020,R & D Current Grants to Central Government,"Industrial Strategy, Science and Innovation - International Science and Innovation",Foreign and Commonwealth Office (FCO),334466,-301.33,NEWTON FUND - Colombia-R & D Current Grants to Central Government,MK10 1PX,WGA ONLY
"Department for Business, Energy and Industrial Strategy","Department for Business, Energy and Industrial Strategy",20/03/2020,R & D Current Grants to Central Government,"Industrial Strategy, Science and Innovation - International Science and Innovation",Foreign and Commonwealth Office (FCO),334466,602.66,NEWTON FUND - Colombia-R & D Current Grants to Central Government,MK10 1PX,WGA ONLY
"Department for Business, Energy and Industrial Strategy","Department for Business, Energy and Industrial Strategy",03/03/2020,Mileage Allowance UK,"Corporate Services - Policy, Delivery and Private Office","Personal Expense, Name Withheld",334494,26.1,MF Devolved Admin-Mileage Allowance UK,,EMPLOYEE
"Department for Business, Energy and Industrial Strategy","Department for Business, Energy and Industrial Strategy",03/03/2020,Subsistence UK,"Corporate Services - Policy, Delivery and Private Office","Personal Expense, Name Withheld",334494,36.72,MF Devolved Admin-Subsistence UK,,EMPLOYEE
"Department for Business, Energy and Industrial Strategy","Department for Business, Energy and Industrial Strategy",03/03/2020,Hotel & Accommodation UK,"Corporate Services - Policy, Delivery and Private Office","Personal Expense, Name Withheld",334494,125.28,MF Devolved Admin-Hotel & Accommodation UK,,EMPLOYEE
"Department for Business, Energy and Industrial Strategy","Department for Business, Energy and Industrial Strategy",10/03/2020,Consultancy Expenditure,Corporate Services - Communications,MICHAEL PAGE INTERNATIONAL RECRUITMENT LTD,334726,43.25,EU Exit: CPG ADM-Consultancy Expenditure,SL1 1DB,VENDOR
"Department for Business, Energy and Industrial Strategy","Department for Business, Energy and Industrial Strategy",02/03/2020,Hire of Interim Managers,Corporate Services - Commercial & Operations,Alexander Mann Solutions Ltd,334913,8007.12,EU Exit Core BEIS Staff: Corporate Services ADM-Hire of Interim Managers,EC2N 3AQ,VENDOR
"Department for Business, Energy and Industrial Strategy","Department for Business, Energy and Industrial Strategy",02/03/2020,Hire of Interim Managers,Corporate Services - Commercial & Operations,Alexander Mann Solutions Ltd,334922,4003.56,EU Exit Core BEIS Staff: Corporate Services ADM-Hire of Interim Managers,EC2N 3AQ,VENDOR
"Department for Business, Energy and Industrial Strategy","Department for Business, Energy and Industrial Strategy",03/03/2020,R & D Contractors,Energy Transformation and Clean Growth - Science and Innovation,Alexander Mann Solutions Ltd,334990,3880.37,Climate Change Science-R & D Contractors,EC2N 3AQ,VENDOR
"Department for Business, Energy and Industrial Strategy","Department for Business, Energy and Industrial Strategy",04/03/2020,Outsourced Programme Management,Energy Transformation and Clean Growth - Industrial Energy,Alexander Mann Solutions Ltd,334991,2362.74,Industrial Heat Policy And Research-Outsourced Programme Management,EC2N 3AQ,VENDOR
"Department for Business, Energy and Industrial Strategy","Department for Business, Energy and Industrial Strategy",02/03/2020,Additions  - Cost - Information Technology,Market Frameworks - Office for Product Safety and Standards,Alexander Mann Solutions Ltd,335000,2032.6,OPSS: National Capacity Organisational Cross Cutting-Additions  - Cost - Information Technology,EC2N 3AQ,VENDOR
"Department for Business, Energy and Industrial Strategy","Department for Business, Energy and Industrial Strategy",19/03/2020,Capital Grants to Private Sector - Companies,Energy Transformation and Clean Growth - Science and Innovation,C-Capture Ltd,335163,-94.41,Innovation Delivery Cross Cutting-Capital Grants to Private Sector - Companies,LS2 9DF,GRANT
"Department for Business, Energy and Industrial Strategy","Department for Business, Energy and Industrial Strategy",09/03/2020,Publications,Business Sectors - Business Investment Directorate,BLOOMBERG FINANCE LP,335172,911.64,MF Devolved Admin-Publications,EC4N 4TQ,VENDOR
"Department for Business, Energy and Industrial Strategy","Department for Business, Energy and Industrial Strategy",09/03/2020,Publications,Business Sectors - Business Investment Directorate,BLOOMBERG FINANCE LP,335172,5469.86,MF Devolved Admin-Publications,EC4N 4TQ,VENDOR
"Department for Business, Energy and Industrial Strategy","Department for Business, Energy and Industrial Strategy",09/03/2020,Capital Grants to Private Sector - Companies,Energy Transformation and Clean Growth - Science and Innovation,Energy Local CIC,335182,46367.06,Innovation Delivery SMART Systems and Integration-Capital Grants to Private Sector - Companies,NP8 1BN,VENDOR
"Department for Business, Energy and Industrial Strategy","Department for Business, Energy and Industrial Strategy",03/03/2020,Clearing Account - Cost - Assets Under Construction - Freehold building,"Industrial Strategy, Science and Innovation - International Science and Innovation",CH2M HILL UNITED KINGDOM,335201,-775.2,NMS AQML Buildings-Clearing Account - Cost - Assets Under Construction - Freehold building,W6 7EF,VENDOR
"Department for Business, Energy and Industrial Strategy","Department for Business, Energy and Industrial Strategy",03/03/2020,Clearing Account - Cost - Assets Under Construction - Freehold building,"Industrial Strategy, Science and Innovation - International Science and Innovation",CH2M HILL UNITED KINGDOM,335201,3227.96,NMS AQML Buildings-Clearing Account - Cost - Assets Under Construction - Freehold building,W6 7EF,VENDOR
"Department for Business, Energy and Industrial Strategy","Department for Business, Energy and Industrial Strategy",03/03/2020,Clearing Account - Cost - Assets Under Construction - Freehold building,"Industrial Strategy, Science and Innovation - International Science and Innovation",CH2M HILL UNITED KINGDOM,335201,6182.44,NMS AQML Buildings-Clearing Account - Cost - Assets Under Construction - Freehold building,W6 7EF,VENDOR
"Department for Business, Energy and Industrial Strategy","Department for Business, Energy and Industrial Strategy",03/03/2020,Clearing Account - Cost - Assets Under Construction - Freehold building,"Industrial Strategy, Science and Innovation - International Science and Innovation",CH2M HILL UNITED KINGDOM,335201,6979.65,NMS AQML Buildings-Clearing Account - Cost - Assets Under Construction - Freehold building,W6 7EF,VENDOR
"Department for Business, Energy and Industrial Strategy","Department for Business, Energy and Industrial Strategy",03/03/2020,Clearing Account - Cost - Assets Under Construction - Freehold building,"Industrial Strategy, Science and Innovation - International Science and Innovation",CH2M HILL UNITED KINGDOM,335201,8366.39,NMS AQML Buildings-Clearing Account - Cost - Assets Under Construction - Freehold building,W6 7EF,VENDOR
"Department for Business, Energy and Industrial Strategy","Department for Business, Energy and Industrial Strategy",02/03/2020,Grant-In-Aid to Arms Length Bodies,Market Frameworks - Labour Market,ACAS,335288,-7247000,ACAS Non-Budget-Grant-In-Aid to Arms Length Bodies,NW1 3JJ,WGA ONLY
"Department for Business, Energy and Industrial Strategy","Department for Business, Energy and Industrial Strategy",02/03/2020,Grant-In-Aid to Arms Length Bodies,Market Frameworks - Labour Market,ACAS,335288,14491000,ACAS Non-Budget-Grant-In-Aid to Arms Length Bodies,NW1 3JJ,WGA ONLY
"Department for Business, Energy and Industrial Strategy","Department for Business, Energy and Industrial Strategy",02/03/2020,Utilisation of Provisions - British Energy,Energy and Security - British Energy Historic Payments,Nuclear Decommissioning Authority,335307,2916650.51,British Energy Historic Liabilities Funding-Utilisation of Provisions - British Energy,CA24 3HW,VENDOR
"Department for Business, Energy and Industrial Strategy","Department for Business, Energy and Industrial Strategy",02/03/2020,Training And Development Expenditure,Corporate Services - Human Resources,Professional Language Solutions Ltd,335309,1404.3,EU Exit: HR ADM-Training And Development Expenditure,W6 0GY,VENDOR
"Department for Business, Energy and Industrial Strategy","Department for Business, Energy and Industrial Strategy",02/03/2020,Grant-In-Aid to Arms Length Bodies,Energy and Security - NDA,Nuclear Decommissioning Authority,335353,47000000,Nuclear Decommissioning Authority Grant in Aid-Grant-In-Aid to Arms Length Bodies,CA24 3HU,VENDOR
"Department for Business, Energy and Industrial Strategy","Department for Business, Energy and Industrial Strategy",02/03/2020,Grant-In-Aid to Arms Length Bodies,Energy and Security - NDA,Nuclear Decommissioning Authority,335353,212000000,Nuclear Decommissioning Authority Grant in Aid-Grant-In-Aid to Arms Length Bodies,CA24 3HU,VENDOR
"Department for Business, Energy and Industrial Strategy","Department for Business, Energy and Industrial Strategy",02/03/2020,Utilisation of Provisions - British Energy,Energy and Security - British Energy Historic Payments,Nuclear Decommissioning Authority,335354,10752818.37,British Energy Historic Liabilities Funding-Utilisation of Provisions - British Energy,CA24 3HW,VENDOR
"Department for Business, Energy and Industrial Strategy","Department for Business, Energy and Industrial Strategy",09/03/2020,Taxi Services UK,"Corporate Services - Digital, Data & Technology","Personal Expense, Name Withheld",335424,11,MF Devolved Admin-Taxi Services UK,,EMPLOYEE
"Department for Business, Energy and Industrial Strategy","Department for Business, Energy and Industrial Strategy",06/03/2020,Subsistence UK,Energy and Security - Energy Development and Resilience,"Personal Expense, Name Withheld",335427,9.49,MF Devolved Admin-Subsistence UK,,EMPLOYEE
"Department for Business, Energy and Industrial Strategy","Department for Business, Energy and Industrial Strategy",06/03/2020,Taxi Services UK,Energy and Security - Energy Development and Resilience,"Personal Expense, Name Withheld",335427,20,MF Devolved Admin-Taxi Services UK,,EMPLOYEE
"Department for Business, Energy and Industrial Strategy","Department for Business, Energy and Industrial Strategy",05/03/2020,R & D Research and Development Expenditure,"Industrial Strategy, Science and Innovation - International Science and Innovation",NPL MANAGEMENT LTD,335498,104166.67,NPL - ISCF Medical Imaging-R & D Research and Development Expenditure,TW11 0LW,VENDOR
"Department for Business, Energy and Industrial Strategy","Department for Business, Energy and Industrial Strategy",05/03/2020,R & D Research and Development Expenditure,"Industrial Strategy, Science and Innovation - International Science and Innovation",NPL MANAGEMENT LTD,335499,67916.67,NPL - ISCF Other-R & D Research and Development Expenditure,TW11 0LW,VENDOR
"Department for Business, Energy and Industrial Strategy","Department for Business, Energy and Industrial Strategy",05/03/2020,R & D Research and Development Expenditure,"Industrial Strategy, Science and Innovation - International Science and Innovation",NPL MANAGEMENT LTD,335508,8333.33,NPL - ISCF Other-R & D Research and Development Expenditure,TW11 0LW,VENDOR
"Department for Business, Energy and Industrial Strategy","Department for Business, Energy and Industrial Strategy",05/03/2020,R & D Research and Development Expenditure,"Industrial Strategy, Science and Innovation - International Science and Innovation",NPL MANAGEMENT LTD,335509,83333.33,NPL - ISCF Other-R & D Research and Development Expenditure,TW11 0LW,VENDOR
"Department for Business, Energy and Industrial Strategy","Department for Business, Energy and Industrial Strategy",04/03/2020,IT Software Licences and Software Maintenance,Corporate Services - Finance & Portfolio,Atlassian Pty Ltd,335514,2005.31,MF Devolved Admin-IT Software Licences and Software Maintenance,NSW 2000,VENDOR
"Department for Business, Energy and Industrial Strategy","Department for Business, Energy and Industrial Strategy",05/03/2020,R & D Research and Development Expenditure,"Industrial Strategy, Science and Innovation - International Science and Innovation",NPL MANAGEMENT LTD,335544,-3228353.33,NMS - NPL Advanced Manufacturing-R & D Research and Development Expenditure,TW11 0LW,VENDOR
"Department for Business, Energy and Industrial Strategy","Department for Business, Energy and Industrial Strategy",05/03/2020,R & D Research and Development Expenditure,"Industrial Strategy, Science and Innovation - International Science and Innovation",NPL MANAGEMENT LTD,335544,-1439980.01,NMS - NPL  Digital-R & D Research and Development Expenditure,TW11 0LW,VENDOR
"Department for Business, Energy and Industrial Strategy","Department for Business, Energy and Industrial Strategy",05/03/2020,R & D Research and Development Expenditure,"Industrial Strategy, Science and Innovation - International Science and Innovation",NPL MANAGEMENT LTD,335544,-1110166.67,NMS - NPL  Life Sciences and Health-R & D Research and Development Expenditure,TW11 0LW,VENDOR
"Department for Business, Energy and Industrial Strategy","Department for Business, Energy and Industrial Strategy",05/03/2020,R & D Research and Development Expenditure,"Industrial Strategy, Science and Innovation - International Science and Innovation",NPL MANAGEMENT LTD,335544,-838083.33,NMS - NPL  Energy and Environment-R & D Research and Development Expenditure,TW11 0LW,VENDOR
"Department for Business, Energy and Industrial Strategy","Department for Business, Energy and Industrial Strategy",05/03/2020,R & D Research and Development Expenditure,"Industrial Strategy, Science and Innovation - International Science and Innovation",NPL MANAGEMENT LTD,335544,-338750,NMS - NPL  Cross Sector-R & D Research and Development Expenditure,TW11 0LW,VENDOR
"Department for Business, Energy and Industrial Strategy","Department for Business, Energy and Industrial Strategy",05/03/2020,R & D Research and Development Expenditure,"Industrial Strategy, Science and Innovation - International Science and Innovation",NPL MANAGEMENT LTD,335544,677500,NMS - NPL  Cross Sector-R & D Research and Development Expenditure,TW11 0LW,VENDOR
"Department for Business, Energy and Industrial Strategy","Department for Business, Energy and Industrial Strategy",05/03/2020,R & D Research and Development Expenditure,"Industrial Strategy, Science and Innovation - International Science and Innovation",NPL MANAGEMENT LTD,335544,1676166.66,NMS - NPL  Energy and Environment-R & D Research and Development Expenditure,TW11 0LW,VENDOR
"Department for Business, Energy and Industrial Strategy","Department for Business, Energy and Industrial Strategy",05/03/2020,R & D Research and Development Expenditure,"Industrial Strategy, Science and Innovation - International Science and Innovation",NPL MANAGEMENT LTD,335544,2220333.34,NMS - NPL  Life Sciences and Health-R & D Research and Development Expenditure,TW11 0LW,VENDOR
"Department for Business, Energy and Industrial Strategy","Department for Business, Energy and Industrial Strategy",05/03/2020,R & D Research and Development Expenditure,"Industrial Strategy, Science and Innovation - International Science and Innovation",NPL MANAGEMENT LTD,335544,2264833.34,NMS - NPL  Digital-R & D Research and Development Expenditure,TW11 0LW,VENDOR
"Department for Business, Energy and Industrial Strategy","Department for Business, Energy and Industrial Strategy",05/03/2020,R & D Research and Development Expenditure,"Industrial Strategy, Science and Innovation - International Science and Innovation",NPL MANAGEMENT LTD,335544,2264833.34,NMS - NPL  Digital-R & D Research and Development Expenditure,TW11 0LW,VENDOR
"Department for Business, Energy and Industrial Strategy","Department for Business, Energy and Industrial Strategy",05/03/2020,R & D Research and Development Expenditure,"Industrial Strategy, Science and Innovation - International Science and Innovation",NPL MANAGEMENT LTD,335544,2542166.66,NMS - NPL Advanced Manufacturing-R & D Research and Development Expenditure,TW11 0LW,VENDOR
"Department for Business, Energy and Industrial Strategy","Department for Business, Energy and Industrial Strategy",04/03/2020,Business Rates,Market Frameworks - Regulation Executive,World Economic Forum,335603,30000,EU Exit: No specific DExEU issue PROG-Business Rates,CH-1223,GRANT
"Department for Business, Energy and Industrial Strategy","Department for Business, Energy and Industrial Strategy",05/03/2020,R & D Research and Development Expenditure,"Industrial Strategy, Science and Innovation - International Science and Innovation",MET OFFICE,335604,645000,Hadley Centre-R & D Research and Development Expenditure,EX1 3PB,WGA ONLY
"Department for Business, Energy and Industrial Strategy","Department for Business, Energy and Industrial Strategy",04/03/2020,Coal Provision Payments Suspense,Energy and Security - Energy Development and Resilience,BEIS COAL CENTRAL ACCOUNT,335611,750000,Liabilities To Ex-British Coal Employees And Other Liabilities Transferred From-Coal Provision Payments Suspense,SW1H 0ET,VENDOR
"Department for Business, Energy and Industrial Strategy","Department for Business, Energy and Industrial Strategy",02/03/2020,Learning and Dev - CS Skills,"Corporate Services - Digital, Data & Technology",QA LTD,335612,1734,MF Devolved Admin-Learning and Dev - CS Skills,EC4N 6HL,VENDOR
"Department for Business, Energy and Industrial Strategy","Department for Business, Energy and Industrial Strategy",04/03/2020,Computer Equipment,"Corporate Services - Digital, Data & Technology",Bechtle Direct Ltd,335619,6180.24,MF Devolved Admin-Computer Equipment,SN14 0GF,VENDOR
"Department for Business, Energy and Industrial Strategy","Department for Business, Energy and Industrial Strategy",26/03/2020,External Legal Advice and Service,"Industrial Strategy, Science and Innovation - International Science and Innovation",Government Legal Department,335621,-209.7,MF Devolved Admin-External Legal Advice and Service,WC2B 4TS,VENDOR
"Department for Business, Energy and Industrial Strategy","Department for Business, Energy and Industrial Strategy",26/03/2020,External Legal Advice and Service,"Industrial Strategy, Science and Innovation - International Science and Innovation",Government Legal Department,335621,419.4,MF Devolved Admin-External Legal Advice and Service,WC2B 4TS,VENDOR
"Department for Business, Energy and Industrial Strategy","Department for Business, Energy and Industrial Strategy",09/03/2020,Clearing Account - Cost - Assets Under Construction - Freehold building,"Industrial Strategy, Science and Innovation - International Science and Innovation",CH2M HILL UNITED KINGDOM,335632,-7678,NMS AQML Buildings-Clearing Account - Cost - Assets Under Construction - Freehold building,W6 7EF,VENDOR
"Department for Business, Energy and Industrial Strategy","Department for Business, Energy and Industrial Strategy",09/03/2020,Clearing Account - Cost - Assets Under Construction - Freehold building,"Industrial Strategy, Science and Innovation - International Science and Innovation",CH2M HILL UNITED KINGDOM,335632,16890.4,NMS AQML Buildings-Clearing Account - Cost - Assets Under Construction - Freehold building,W6 7EF,VENDOR
"Department for Business, Energy and Industrial Strategy","Department for Business, Energy and Industrial Strategy",04/03/2020,Computer Equipment,"Corporate Services - Digital, Data & Technology",XMA LTD,335633,16715.81,MF Devolved Admin-Computer Equipment,NG11 7EP,VENDOR
"Department for Business, Energy and Industrial Strategy","Department for Business, Energy and Industrial Strategy",09/03/2020,External Training,"Corporate Services - Digital, Data & Technology","Personal Expense, Name Withheld",335649,1360,MF Devolved Admin-External Training,,EMPLOYEE
"Department for Business, Energy and Industrial Strategy","Department for Business, Energy and Industrial Strategy",03/03/2020,Current Grants To Private Sector - NPISH,Energy Transformation and Clean Growth - International Energy and Climate Finance,Global Green Growth Institute,335759,105944.96,International Climate Finance (ICF)-Current Grants To Private Sector - NPISH,4518,GRANT
"Department for Business, Energy and Industrial Strategy","Department for Business, Energy and Industrial Strategy",03/03/2020,Outsourced Programme Management,Energy Transformation and Clean Growth - Energy Efficiency and Local,PENNA plc,335780,832.8,Heat Network Delivery Unit-Outsourced Programme Management,EC4M 7RD,VENDOR
"Department for Business, Energy and Industrial Strategy","Department for Business, Energy and Industrial Strategy",02/03/2020,Stationery,Corporate Services - Legal Services,Banner Group Limited,335822,69.5,MF Devolved Admin-Stationery,NR3 1QU,VENDOR
"Department for Business, Energy and Industrial Strategy","Department for Business, Energy and Industrial Strategy",02/03/2020,Stationery,Corporate Services - Legal Services,Banner Group Limited,335825,390.71,MF Devolved Admin-Stationery,NR3 1QU,VENDOR
"Department for Business, Energy and Industrial Strategy","Department for Business, Energy and Industrial Strategy",02/03/2020,Stationery,Corporate Services - Legal Services,Banner Group Limited,335833,10.74,MF Devolved Admin-Stationery,NR3 1QU,VENDOR
"Department for Business, Energy and Industrial Strategy","Department for Business, Energy and Industrial Strategy",10/03/2020,Application Development,"Corporate Services - Digital, Data & Technology",Tisski Ltd,335837,-600,MF Non Devolved Admin-Application Development,S11 7PX,VENDOR
"Department for Business, Energy and Industrial Strategy","Department for Business, Energy and Industrial Strategy",10/03/2020,Application Development,"Corporate Services - Digital, Data & Technology",Tisski Ltd,335837,300,MF Non Devolved Admin-Application Development,S11 7PX,VENDOR
"Department for Business, Energy and Industrial Strategy","Department for Business, Energy and Industrial Strategy",02/03/2020,Professional Subscriptions,Corporate Services - Human Resources,"Personal Expense, Name Withheld",335841,395,EU Exit Core BEIS Staff: Corporate Services ADM-Professional Subscriptions,,EMPLOYEE
"Department for Business, Energy and Industrial Strategy","Department for Business, Energy and Industrial Strategy",02/03/2020,Subsistence UK,Energy and Security - Nuclear Directorate,"Personal Expense, Name Withheld",335843,15,MF Devolved Admin-Subsistence UK,,EMPLOYEE
"Department for Business, Energy and Industrial Strategy","Department for Business, Energy and Industrial Strategy",09/03/2020,Taxi Services UK,"Corporate Services - Digital, Data & Technology","Personal Expense, Name Withheld",335846,46.5,MF Devolved Admin-Taxi Services UK,,EMPLOYEE
"Department for Business, Energy and Industrial Strategy","Department for Business, Energy and Industrial Strategy",03/03/2020,Mileage Allowance UK,Energy Transformation and Clean Growth - International Energy and Climate Finance,"Personal Expense, Name Withheld",335850,56.16,International Climate Finance (ICF)-Mileage Allowance UK,,EMPLOYEE
"Department for Business, Energy and Industrial Strategy","Department for Business, Energy and Industrial Strategy",02/03/2020,Current Grants To Central Government,Energy Transformation and Clean Growth - Clean Heat,OFFICE OF GAS AND ELECTRICITY MARKETS (OFGEM),335895,15786784,RHI Domestic AME Payments-Current Grants To Central Government,SW1P 3GE,GRANT
"Department for Business, Energy and Industrial Strategy","Department for Business, Energy and Industrial Strategy",02/03/2020,Current Grants To Central Government,Energy Transformation and Clean Growth - Clean Heat,OFFICE OF GAS AND ELECTRICITY MARKETS (OFGEM),335899,-72531566,RHI Non-Domestic AME Payments-Current Grants To Central Government,SW1P 3GE,GRANT
"Department for Business, Energy and Industrial Strategy","Department for Business, Energy and Industrial Strategy",02/03/2020,Current Grants To Central Government,Energy Transformation and Clean Growth - Clean Heat,OFFICE OF GAS AND ELECTRICITY MARKETS (OFGEM),335899,145063122,RHI Non-Domestic AME Payments-Current Grants To Central Government,SW1P 3GE,GRANT
"Department for Business, Energy and Industrial Strategy","Department for Business, Energy and Industrial Strategy",02/03/2020,Computer Consumables,Market Frameworks - Office for Product Safety and Standards,SPECIALIST COMPUTER CENTRES (SSC),335922,706.58,OPSS: Central/Core-Computer Consumables,B11 2LE,VENDOR
"Department for Business, Energy and Industrial Strategy","Department for Business, Energy and Industrial Strategy",02/03/2020,Guarding and Security Services,Corporate Services - Commercial & Operations,INTERNET RESEARCH & TRAINING SERVICES,335930,330,MF Devolved Admin-Guarding and Security Services,S10 4EF,VENDOR
"Department for Business, Energy and Industrial Strategy","Department for Business, Energy and Industrial Strategy",04/03/2020,Professional Training,"Energy and Security - Energy Security, Networks and Markets",European University Institute,335937,532.53,MF Devolved Admin-Professional Training,50014,VENDOR
"Department for Business, Energy and Industrial Strategy","Department for Business, Energy and Industrial Strategy",12/03/2020,Current Grants To Private Sector - NPISH,Energy Transformation and Clean Growth - International Climate Change,Third Generation Environmentalism Ltd (E3G),335945,78000,Strengthening Support for the UK Objectives in UNFCCC and EU Negotiations-Current Grants To Private Sector - NPISH,SE1 0ES,VENDOR
"Department for Business, Energy and Industrial Strategy","Department for Business, Energy and Industrial Strategy",17/03/2020,Hire of Conference Facilities,Energy Transformation and Clean Growth - Clean Heat,CHURCH HOUSE CONFERENCE CENTRE LTD,335959,-2075.99,MF Devolved Admin-Hire of Conference Facilities,SW1P 3NZ,VENDOR
"Department for Business, Energy and Industrial Strategy","Department for Business, Energy and Industrial Strategy",17/03/2020,Hire of Conference Facilities,Energy Transformation and Clean Growth - Clean Heat,CHURCH HOUSE CONFERENCE CENTRE LTD,335959,2854.49,MF Devolved Admin-Hire of Conference Facilities,SW1P 3NZ,VENDOR
"Department for Business, Energy and Industrial Strategy","Department for Business, Energy and Industrial Strategy",23/03/2020,Purchase of Intangible Software,"Corporate Services - Digital, Data & Technology",SPECIALIST COMPUTER CENTRES (SSC),335974,-458.26,MF Devolved Admin-Purchase of Intangible Software,B11 2LE,VENDOR
"Department for Business, Energy and Industrial Strategy","Department for Business, Energy and Industrial Strategy",23/03/2020,Purchase of Intangible Software,"Corporate Services - Digital, Data & Technology",SPECIALIST COMPUTER CENTRES (SSC),335974,1008.18,MF Devolved Admin-Purchase of Intangible Software,B11 2LE,VENDOR
"Department for Business, Energy and Industrial Strategy","Department for Business, Energy and Industrial Strategy",02/03/2020,Current Grants To Private Sector - NPISH,Energy Transformation and Clean Growth - International Energy and Climate Finance,Foreign and Commonwealth Office (FCO),335977,334.79,International Climate Finance (ICF)-Current Grants To Private Sector - NPISH,MK10 1PX,WGA ONLY
"Department for Business, Energy and Industrial Strategy","Department for Business, Energy and Industrial Strategy",02/03/2020,Current Grants To Private Sector - NPISH,Energy Transformation and Clean Growth - International Energy and Climate Finance,Foreign and Commonwealth Office (FCO),335977,4000,International Climate Finance (ICF)-Current Grants To Private Sector - NPISH,MK10 1PX,WGA ONLY
"Department for Business, Energy and Industrial Strategy","Department for Business, Energy and Industrial Strategy",02/03/2020,Conferences,Business Sectors - Advanced Manufacturing,Peloton Events UK Ltd,335978,360,MF Devolved Admin-Conferences,M3 2JA,VENDOR
"Department for Business, Energy and Industrial Strategy","Department for Business, Energy and Industrial Strategy",02/03/2020,Other Professional Services,Market Frameworks - Office for Product Safety and Standards,Personal Name Withheld,335988,2416.8,OPSS: National Capacity Policy-Other Professional Services,B71 ,VENDOR
"Department for Business, Energy and Industrial Strategy","Department for Business, Energy and Industrial Strategy",02/03/2020,Purchase of Intangible Software,Market Frameworks - Office for Product Safety and Standards,PROBRAND LTD,335997,6116.4,OPSS: National Capacity Intelligence-Purchase of Intangible Software,B1 3BP,VENDOR
"Department for Business, Energy and Industrial Strategy","Department for Business, Energy and Industrial Strategy",27/03/2020,Fast stream - Full Cost,Corporate Services - Human Resources,Cabinet Office,335999,-168643,MF Non Devolved Admin-Fast stream - Full Cost,FY1 9JN,WGA ONLY
"Department for Business, Energy and Industrial Strategy","Department for Business, Energy and Industrial Strategy",27/03/2020,Fast stream - Full Cost,Corporate Services - Human Resources,Cabinet Office,335999,307104,MF Non Devolved Admin-Fast stream - Full Cost,FY1 9JN,WGA ONLY
"Department for Business, Energy and Industrial Strategy","Department for Business, Energy and Industrial Strategy",13/03/2020,R & D Outsourced Other,Energy Transformation and Clean Growth - Science and Innovation,MET OFFICE,336000,1045833.33,Climate Change Science-R & D Outsourced Other,EX1 3PB,WGA ONLY
"Department for Business, Energy and Industrial Strategy","Department for Business, Energy and Industrial Strategy",03/03/2020,Rail Travel UK,Energy Transformation and Clean Growth - International Energy and Climate Finance,"Personal Expense, Name Withheld",336042,33.3,International Climate Finance (ICF)-Rail Travel UK,,EMPLOYEE
"Department for Business, Energy and Industrial Strategy","Department for Business, Energy and Industrial Strategy",05/03/2020,Rail Travel UK,Energy Transformation and Clean Growth - Science and Innovation,"Personal Expense, Name Withheld",336050,3.05,MF Devolved Admin-Rail Travel UK,,EMPLOYEE
"Department for Business, Energy and Industrial Strategy","Department for Business, Energy and Industrial Strategy",05/03/2020,Subsistence UK,Energy Transformation and Clean Growth - Science and Innovation,"Personal Expense, Name Withheld",336050,3.25,MF Devolved Admin-Subsistence UK,,EMPLOYEE
"Department for Business, Energy and Industrial Strategy","Department for Business, Energy and Industrial Strategy",02/03/2020,Subsistence UK,"Trade, Europe and Analysis - Analysis Directorate","Personal Expense, Name Withheld",336055,11.9,MF Devolved Admin-Subsistence UK,,EMPLOYEE
"Department for Business, Energy and Industrial Strategy","Department for Business, Energy and Industrial Strategy",02/03/2020,Taxi Services UK,"Trade, Europe and Analysis - Analysis Directorate","Personal Expense, Name Withheld",336055,70.8,MF Devolved Admin-Taxi Services UK,,EMPLOYEE
"Department for Business, Energy and Industrial Strategy","Department for Business, Energy and Industrial Strategy",02/03/2020,R & D Internally Generated,"Industrial Strategy, Science and Innovation - Government Office for Science",Alexander Mann Solutions Ltd,336085,331.03,Foresight: Government Science and Engineering-R & D Internally Generated,EC2N 3AQ,VENDOR
"Department for Business, Energy and Industrial Strategy","Department for Business, Energy and Industrial Strategy",02/03/2020,Outsourced Programme Management,Energy Transformation and Clean Growth - Industrial Energy,Alexander Mann Solutions Ltd,336087,2551.72,Industrial Heat Policy And Research-Outsourced Programme Management,EC2N 3AQ,VENDOR
"Department for Business, Energy and Industrial Strategy","Department for Business, Energy and Industrial Strategy",03/03/2020,External Training,Market Frameworks - Office for Product Safety and Standards,KPMG LLP,336088,2500,OPSS: National Capacity Organisational Cross Cutting-External Training,E14 5GL,VENDOR
"Department for Business, Energy and Industrial Strategy","Department for Business, Energy and Industrial Strategy",03/03/2020,Learning and Dev - CS Skills,Energy and Security - Energy and Security DG Office,MYCSP LTD,336089,170,MF Devolved Admin-Learning and Dev - CS Skills,SK3 0XN,VENDOR
"Department for Business, Energy and Industrial Strategy","Department for Business, Energy and Industrial Strategy",02/03/2020,Consultancy Expenditure,Energy Transformation and Clean Growth - Industrial Energy,KPMG LLP,336090,35240,UK role in EU ETS-Consultancy Expenditure,WD17 1DE,VENDOR
"Department for Business, Energy and Industrial Strategy","Department for Business, Energy and Industrial Strategy",03/03/2020,Technical Advice / Services & Support,Corporate Services - Finance & Portfolio,Alexander Mann Solutions Ltd,336091,4434.7,MF Devolved Admin-Technical Advice / Services & Support,EC2N 3AQ,VENDOR
"Department for Business, Energy and Industrial Strategy","Department for Business, Energy and Industrial Strategy",09/03/2020,Grant-In-Aid to Arms Length Bodies,Energy Transformation and Clean Growth - Clean Growth,THE COMMITTEE ON CLIMATE CHANGE,336094,-922000,Committee on Climate Change Grant in Aid Payments-Grant-In-Aid to Arms Length Bodies,SW1W 8NR,GRANT
"Department for Business, Energy and Industrial Strategy","Department for Business, Energy and Industrial Strategy",09/03/2020,Grant-In-Aid to Arms Length Bodies,Energy Transformation and Clean Growth - Clean Growth,THE COMMITTEE ON CLIMATE CHANGE,336094,1844000,Committee on Climate Change Grant in Aid Payments-Grant-In-Aid to Arms Length Bodies,SW1W 8NR,GRANT
"Department for Business, Energy and Industrial Strategy","Department for Business, Energy and Industrial Strategy",03/03/2020,Technical Advice / Services & Support,Corporate Services - Finance & Portfolio,Alexander Mann Solutions Ltd,336096,6652.04,MF Devolved Admin-Technical Advice / Services & Support,EC2N 3AQ,VENDOR
"Department for Business, Energy and Industrial Strategy","Department for Business, Energy and Industrial Strategy",03/03/2020,Hire of Agency Staff,Market Frameworks - Office for Product Safety and Standards,Alexander Mann Solutions Ltd,336097,567.04,OPSS: Cross Cutting-Hire of Agency Staff,EC2N 3AQ,VENDOR
"Department for Business, Energy and Industrial Strategy","Department for Business, Energy and Industrial Strategy",03/03/2020,Hire of Interim Managers,"Corporate Services - Digital, Data & Technology",Alexander Mann Solutions Ltd,336111,3387.66,MF Devolved Admin-Hire of Interim Managers,EC2N 3AQ,VENDOR
"Department for Business, Energy and Industrial Strategy","Department for Business, Energy and Industrial Strategy",02/03/2020,Hire of Agency Staff,Energy Transformation and Clean Growth - Industrial Energy,Alexander Mann Solutions Ltd,336112,3622.86,MF Devolved Admin-Hire of Agency Staff,EC2N 3AQ,VENDOR
"Department for Business, Energy and Industrial Strategy","Department for Business, Energy and Industrial Strategy",03/03/2020,Catering Services,Market Frameworks - Regulation Executive,HOUSE OF LORDS CATERING & RETAIL SERVICES,336113,3375.93,MF Devolved Admin-Catering Services,SW1A 0PW,VENDOR
"Department for Business, Energy and Industrial Strategy","Department for Business, Energy and Industrial Strategy",02/03/2020,Consultancy Expenditure,Energy Transformation and Clean Growth - Industrial Energy,KPMG LLP,336114,-35240,UK role in EU ETS-Consultancy Expenditure,WD17 1DE,VENDOR
"Department for Business, Energy and Industrial Strategy","Department for Business, Energy and Industrial Strategy",02/03/2020,Outsourced Programme Management,Energy Transformation and Clean Growth - Industrial Energy,Alexander Mann Solutions Ltd,336116,3780.36,Industrial Heat Policy And Research-Outsourced Programme Management,EC2N 3AQ,VENDOR
"Department for Business, Energy and Industrial Strategy","Department for Business, Energy and Industrial Strategy",04/03/2020,Outsourced Programme Management,Energy Transformation and Clean Growth - Industrial Energy,Alexander Mann Solutions Ltd,336117,1890.19,Industrial Heat Policy And Research-Outsourced Programme Management,EC2N 3AQ,VENDOR
"Department for Business, Energy and Industrial Strategy","Department for Business, Energy and Industrial Strategy",04/03/2020,Computer Consumables,"Corporate Services - Digital, Data & Technology",PROBRAND LTD,336125,2639.52,MF Devolved Admin-Computer Consumables,B1 3BP,VENDOR
"Department for Business, Energy and Industrial Strategy","Department for Business, Energy and Industrial Strategy",02/03/2020,Current Grants To Local Government,Business Sectors - Cities and Local Growth,OXFORDSHIRE COUNTY COUNCIL,336131,44270,Growth Hubs-Current Grants To Local Government,OX1 1NE,WGA ONLY
"Department for Business, Energy and Industrial Strategy","Department for Business, Energy and Industrial Strategy",02/03/2020,Current Grants To Local Government,Energy Transformation and Clean Growth - Energy Efficiency and Local,Lancashire County Council,336133,182938.4,Local Energy-Current Grants To Local Government,PR1 0LD,WGA ONLY
"Department for Business, Energy and Industrial Strategy","Department for Business, Energy and Industrial Strategy",13/03/2020,Computer Equipment,"Corporate Services - Digital, Data & Technology",Bechtle Direct Ltd,336134,-5546,MF Devolved Admin-Computer Equipment,SN14 0GF,VENDOR
"Department for Business, Energy and Industrial Strategy","Department for Business, Energy and Industrial Strategy",13/03/2020,Computer Equipment,"Corporate Services - Digital, Data & Technology",Bechtle Direct Ltd,336134,12201.2,MF Devolved Admin-Computer Equipment,SN14 0GF,VENDOR
"Department for Business, Energy and Industrial Strategy","Department for Business, Energy and Industrial Strategy",03/03/2020,Hire of Agency Staff,Market Frameworks - Office for Product Safety and Standards,Alexander Mann Solutions Ltd,336148,2079.18,OPSS: Cross Cutting-Hire of Agency Staff,EC2N 3AQ,VENDOR
"Department for Business, Energy and Industrial Strategy","Department for Business, Energy and Industrial Strategy",09/03/2020,Hire of Interim Managers,"Industrial Strategy, Science and Innovation - International Science and Innovation",Alexander Mann Solutions Ltd,336153,2365.16,Collaboration: Unallocated-Hire of Interim Managers,EC2N 3AQ,VENDOR
"Department for Business, Energy and Industrial Strategy","Department for Business, Energy and Industrial Strategy",03/03/2020,Hire of Agency Staff,Market Frameworks - Office for Product Safety and Standards,Alexander Mann Solutions Ltd,336161,1575.12,OPSS: National Capacity Organisational Cross Cutting-Hire of Agency Staff,EC2N 3AQ,VENDOR
"Department for Business, Energy and Industrial Strategy","Department for Business, Energy and Industrial Strategy",03/03/2020,Hire of Agency Staff,Market Frameworks - Office for Product Safety and Standards,Alexander Mann Solutions Ltd,336163,2155.8,OPSS: National Capacity Organisational Cross Cutting-Hire of Agency Staff,EC2N 3AQ,VENDOR
"Department for Business, Energy and Industrial Strategy","Department for Business, Energy and Industrial Strategy",10/03/2020,Hire of Interim Managers,"Corporate Services - Digital, Data & Technology",Alexander Mann Solutions Ltd,336164,-1478.23,EU Exit: Digital ADM-Hire of Interim Managers,EC2N 3AQ,VENDOR
"Department for Business, Energy and Industrial Strategy","Department for Business, Energy and Industrial Strategy",10/03/2020,Hire of Interim Managers,"Corporate Services - Digital, Data & Technology",Alexander Mann Solutions Ltd,336164,2956.46,EU Exit: Digital ADM-Hire of Interim Managers,EC2N 3AQ,VENDOR
"Department for Business, Energy and Industrial Strategy","Department for Business, Energy and Industrial Strategy",03/03/2020,Training And Development Expenditure,Corporate Services - Human Resources,EEF LTD,336182,2694,EU Exit: HR ADM-Training And Development Expenditure,SW1H 9NQ,VENDOR
"Department for Business, Energy and Industrial Strategy","Department for Business, Energy and Industrial Strategy",02/03/2020,Technical Advice / Services & Support,Market Frameworks - Office for Product Safety and Standards,FCO SERVICES,336183,375,OPSS: National Capacity Market Surveillance and Consumer-Technical Advice / Services & Support,MK19 7BH,WGA ONLY
"Department for Business, Energy and Industrial Strategy","Department for Business, Energy and Industrial Strategy",02/03/2020,Current Grants To Private Sector - NPISH,Market Frameworks - Consumer and Competition Policy,TRADING STANDARDS INSTITUTE (TSI),336184,44246.99,EU Exit: Trading standards PROG-Current Grants To Private Sector - NPISH,SS15 6TH,VENDOR
"Department for Business, Energy and Industrial Strategy","Department for Business, Energy and Industrial Strategy",02/03/2020,Current Grants To Private Sector - NPISH,Market Frameworks - Consumer and Competition Policy,TRADING STANDARDS INSTITUTE (TSI),336185,98835.29,CTSI: Business Education-Current Grants To Private Sector - NPISH,SS15 6TH,VENDOR
"Department for Business, Energy and Industrial Strategy","Department for Business, Energy and Industrial Strategy",02/03/2020,R & D Hotel & Accommodation UK,"Industrial Strategy, Science and Innovation - International Science and Innovation",UKRI - Engineering and Physical Sciences Research Council,336188,-6137.82,NEWTON FUND - Regional conferences/Other Activities-R & D Hotel & Accommodation UK,SN2 1FF,VENDOR
"Department for Business, Energy and Industrial Strategy","Department for Business, Energy and Industrial Strategy",02/03/2020,R & D Hotel & Accommodation UK,"Industrial Strategy, Science and Innovation - International Science and Innovation",UKRI - Engineering and Physical Sciences Research Council,336189,5114.84,NEWTON FUND - Regional conferences/Other Activities-R & D Hotel & Accommodation UK,SN2 1FF,VENDOR
"Department for Business, Energy and Industrial Strategy","Department for Business, Energy and Industrial Strategy",02/03/2020,R & D Outsourced Other,Energy Transformation and Clean Growth - Science and Innovation,Progressive Energy Ltd,336191,51740.18,Innovation Delivery Industry and Carbon Capture Demonstration-R & D Outsourced Other,GL10 3RF,VENDOR
"Department for Business, Energy and Industrial Strategy","Department for Business, Energy and Industrial Strategy",02/03/2020,Training And Development Expenditure,Corporate Services - Human Resources,Cornwall Insight Ltd,336192,595,MF Non Devolved Admin-Training And Development Expenditure,NR1 1BY,VENDOR
"Department for Business, Energy and Industrial Strategy","Department for Business, Energy and Industrial Strategy",11/03/2020,Other Professional Services,Market Frameworks - Office for Product Safety and Standards,STORMNET MEDIA LTD,336194,888.3,OPSS: Primary Authority-Other Professional Services,B60 3ET,VENDOR
"Department for Business, Energy and Industrial Strategy","Department for Business, Energy and Industrial Strategy",02/03/2020,Economic Consultancy & Research,"Trade, Europe and Analysis - Analysis Directorate",CALDER CONFERENCES LTD,336200,480,MF Devolved Admin-Economic Consultancy & Research,LS16 6RF,VENDOR
"Department for Business, Energy and Industrial Strategy","Department for Business, Energy and Industrial Strategy",02/03/2020,International Subscriptions,Energy Transformation and Clean Growth - International Climate Change,Atalian Servest Ltd,336201,1520.4,Strengthening Support for the UK Objectives in UNFCCC and EU Negotiations-International Subscriptions,IP28 6LG,VENDOR
"Department for Business, Energy and Industrial Strategy","Department for Business, Energy and Industrial Strategy",02/03/2020,External Legal Advice and Service,Market Frameworks - Consumer and Competition Policy,Ministry Of Justice,336205,10185,MF Devolved Admin-External Legal Advice and Service,NP20 9BB,WGA ONLY
"Department for Business, Energy and Industrial Strategy","Department for Business, Energy and Industrial Strategy",02/03/2020,Hire of Conference Facilities,Corporate Services - Commercial & Operations,CHURCH HOUSE CONFERENCE CENTRE LTD,336206,515,MF Devolved Admin-Hire of Conference Facilities,SW1P 3NZ,VENDOR
"Department for Business, Energy and Industrial Strategy","Department for Business, Energy and Industrial Strategy",23/03/2020,Purchase of Intangible Software,"Corporate Services - Digital, Data & Technology",SPECIALIST COMPUTER CENTRES (SSC),336212,-5723,MF Devolved Admin-Purchase of Intangible Software,B11 2LE,VENDOR
"Department for Business, Energy and Industrial Strategy","Department for Business, Energy and Industrial Strategy",23/03/2020,Purchase of Intangible Software,"Corporate Services - Digital, Data & Technology",SPECIALIST COMPUTER CENTRES (SSC),336212,9156.8,MF Devolved Admin-Purchase of Intangible Software,B11 2LE,VENDOR
"Department for Business, Energy and Industrial Strategy","Department for Business, Energy and Industrial Strategy",23/03/2020,Purchase of Intangible Software,"Corporate Services - Digital, Data & Technology",SPECIALIST COMPUTER CENTRES (SSC),336213,-565.27,MF Devolved Admin-Purchase of Intangible Software,B11 2LE,VENDOR
"Department for Business, Energy and Industrial Strategy","Department for Business, Energy and Industrial Strategy",23/03/2020,Purchase of Intangible Software,"Corporate Services - Digital, Data & Technology",SPECIALIST COMPUTER CENTRES (SSC),336213,1243.59,MF Devolved Admin-Purchase of Intangible Software,B11 2LE,VENDOR
"Department for Business, Energy and Industrial Strategy","Department for Business, Energy and Industrial Strategy",02/03/2020,Current Grants To Private Sector - NPISH,Energy Transformation and Clean Growth - International Energy and Climate Finance,OXFORD POLICY MANAGEMENT LTD,336224,103797.54,International Climate Finance (ICF)-Current Grants To Private Sector - NPISH,OX1 3HJ,VENDOR
"Department for Business, Energy and Industrial Strategy","Department for Business, Energy and Industrial Strategy",02/03/2020,R & D Outsourced Other,Energy Transformation and Clean Growth - Science and Innovation,Microwire Ltd,336225,21506.93,Clean Sustainable Energy R and D Programme Changes-R & D Outsourced Other,CB2 8ET,VENDOR
"Department for Business, Energy and Industrial Strategy","Department for Business, Energy and Industrial Strategy",02/03/2020,Other Professional Services,Energy and Security - Nuclear Directorate,NATIONAL NUCLEAR LABORATORY LTD,336226,220182.96,Nuclear Safeguards Support Programme (Cabinet Office RDEL),WA3 6AE,VENDOR
"Department for Business, Energy and Industrial Strategy","Department for Business, Energy and Industrial Strategy",02/03/2020,Other Professional Services,Energy and Security - Nuclear Directorate,NATIONAL NUCLEAR LABORATORY LTD,336227,302911.06,Nuclear Safeguards Support Programme (Cabinet Office RDEL),WA3 6AE,VENDOR
"Department for Business, Energy and Industrial Strategy","Department for Business, Energy and Industrial Strategy",02/03/2020,HR Training Education Consultancy,"Trade, Europe and Analysis - Analysis Directorate",MATT HAMNETT & ASSOCIATES LTD,336229,1320,MF Devolved Admin-HR Training Education Consultancy,N5 1AZ,VENDOR
"Department for Business, Energy and Industrial Strategy","Department for Business, Energy and Industrial Strategy",02/03/2020,R & D Current Grants to Private Sector - NPISH,"Industrial Strategy, Science and Innovation - International Science and Innovation",NATIONAL INSTITUTE FOR BIOLOGICAL STANDARDS AND CONTROL (NIBSC),336233,32880.16,NPL - ISCF Other-R & D Current Grants to Private Sector - NPISH,EN6 3QG,VENDOR
"Department for Business, Energy and Industrial Strategy","Department for Business, Energy and Industrial Strategy",02/03/2020,R & D Technical Advice/Services and Support,Energy Transformation and Clean Growth - Science and Innovation,MOTT MACDONALD LTD,336234,22802,Innovation Delivery Cross Cutting-R & D Technical Advice/Services and Support,CR0 2EE,VENDOR
"Department for Business, Energy and Industrial Strategy","Department for Business, Energy and Industrial Strategy",02/03/2020,Mileage Allowance UK,Energy and Security - Energy Development and Resilience,"Personal Expense, Name Withheld",336238,14.25,Offshore Environmental Permits-Mileage Allowance UK,,EMPLOYEE
"Department for Business, Energy and Industrial Strategy","Department for Business, Energy and Industrial Strategy",02/03/2020,Other Travel,Energy and Security - Energy Development and Resilience,"Personal Expense, Name Withheld",336238,31.1,Offshore Environmental Permits-Other Travel,,EMPLOYEE
"Department for Business, Energy and Industrial Strategy","Department for Business, Energy and Industrial Strategy",02/03/2020,Subsistence UK,Market Frameworks - Office for Product Safety and Standards,"Personal Expense, Name Withheld",336239,16.88,OPSS: Primary Authority-Subsistence UK,,EMPLOYEE
"Department for Business, Energy and Industrial Strategy","Department for Business, Energy and Industrial Strategy",02/03/2020,Subsistence UK,Market Frameworks - Office for Product Safety and Standards,"Personal Expense, Name Withheld",336240,16.88,OPSS: Primary Authority-Subsistence UK,,EMPLOYEE
"Department for Business, Energy and Industrial Strategy","Department for Business, Energy and Industrial Strategy",02/03/2020,Mileage Allowance UK,Market Frameworks - Office for Product Safety and Standards,"Personal Expense, Name Withheld",336240,72,OPSS: Primary Authority-Mileage Allowance UK,,EMPLOYEE
"Department for Business, Energy and Industrial Strategy","Department for Business, Energy and Industrial Strategy",02/03/2020,Subsistence Overseas,Energy Transformation and Clean Growth - International Climate Change,"Personal Expense, Name Withheld",336241,1.83,MF Devolved Admin-Subsistence Overseas,,EMPLOYEE
"Department for Business, Energy and Industrial Strategy","Department for Business, Energy and Industrial Strategy",02/03/2020,Subsistence Overseas,Energy Transformation and Clean Growth - International Climate Change,"Personal Expense, Name Withheld",336241,4.49,MF Devolved Admin-Subsistence Overseas,,EMPLOYEE
"Department for Business, Energy and Industrial Strategy","Department for Business, Energy and Industrial Strategy",02/03/2020,Rail Travel Overseas,Energy Transformation and Clean Growth - International Climate Change,"Personal Expense, Name Withheld",336241,5.19,MF Devolved Admin-Rail Travel Overseas,,EMPLOYEE
"Department for Business, Energy and Industrial Strategy","Department for Business, Energy and Industrial Strategy",02/03/2020,Subsistence Overseas,Energy Transformation and Clean Growth - International Climate Change,"Personal Expense, Name Withheld",336241,19.14,MF Devolved Admin-Subsistence Overseas,,EMPLOYEE
"Department for Business, Energy and Industrial Strategy","Department for Business, Energy and Industrial Strategy",02/03/2020,Subsistence Overseas,Energy Transformation and Clean Growth - International Climate Change,"Personal Expense, Name Withheld",336241,42.89,MF Devolved Admin-Subsistence Overseas,,EMPLOYEE
"Department for Business, Energy and Industrial Strategy","Department for Business, Energy and Industrial Strategy",02/03/2020,Taxi Services Overseas,Energy Transformation and Clean Growth - International Climate Change,"Personal Expense, Name Withheld",336241,84,MF Devolved Admin-Taxi Services Overseas,,EMPLOYEE
"Department for Business, Energy and Industrial Strategy","Department for Business, Energy and Industrial Strategy",02/03/2020,Subsistence UK,Business Sectors - Advanced Manufacturing,"Personal Expense, Name Withheld",336242,3.05,MF Devolved Admin-Subsistence UK,,EMPLOYEE
"Department for Business, Energy and Industrial Strategy","Department for Business, Energy and Industrial Strategy",02/03/2020,Subsistence UK,Business Sectors - Advanced Manufacturing,"Personal Expense, Name Withheld",336242,24.37,MF Devolved Admin-Subsistence UK,,EMPLOYEE
"Department for Business, Energy and Industrial Strategy","Department for Business, Energy and Industrial Strategy",02/03/2020,Rail Travel UK,Business Sectors - Advanced Manufacturing,"Personal Expense, Name Withheld",336243,12.3,MF Devolved Admin-Rail Travel UK,,EMPLOYEE
"Department for Business, Energy and Industrial Strategy","Department for Business, Energy and Industrial Strategy",02/03/2020,Subsistence UK,Business Sectors - Advanced Manufacturing,"Personal Expense, Name Withheld",336243,12.55,MF Devolved Admin-Subsistence UK,,EMPLOYEE
